Cogmind - Beta 14 *** ADVENTURER MODE // 2024.09.01 @ 09:59:18 Player: core_nxt Result: Destroyed 0b10! Performance ------------- Evolutions (9) 4500 Regions Visited (31) 6200 Robots Destroyed (642) 3210 Value Destroyed (37643) 37643 Prototype IDs (330) 6600 Alien Tech Used (15) 3000 Bonus (61727) 61727 TOTAL SCORE: 122880 Bonus ------- Triggered High Security 500 Triggered Max Security 1000 High Alert Combat Kills 11858 Follower Combat Kills 2223 Awakened Behemoth Slayer 1000 Delivered SUBCON Basin 2000 Registered with UFD 300 Met Imprinter 300 Destroyed Z-Imprinter 1000 Triggered Deep Caves Wall 500 Exposed GOLEM Chamber 500 Met Warlord at Base 500 MAIN.C Attacked Warlord 500 Warlord Defense Kills 2514 Used Core Reset Matrix 3000 Met Sigix 2000 Integrated Exoskeleton 5000 Escaped with Sigix 5000 Destroyed MAIN.C Guards 500 Met MAIN.C 5000 Destroyed MAIN.C Shell 5000 Destroyed MAIN.C 10000 Win 3000 Friendly Fire -1468 Cogmind --------- Core Integrity 866/1600 Matter 290/300 Energy 1048/1050 System Corruption 0% Temperature Cool (0) Movement Walking (90) Ox1 Location Tau Ceti IV Orbit Parts ------- > --- POWER (2) -------- Vortex Chain Reactor > --- PROPULSION (3) --- Sigix Exoskeleton > --- UTILITY (7) ------ Huge Storage Unit Quantum Shading Machine Medium Regenerative Plating Medium Regenerative Plating Heavy Regenerative Plating > --- WEAPON (3) ------- Sigix Shearcannon Improved Remote Datajack > --- INVENTORY (25) --- Matter Drive Advanced Phase Shifter Transdimensional Reconstructor Transdimensional Reconstructor Integrity Redistributor Integrity Redistributor Terrabomb Terrabomb Terrabomb Microwarp Drive Sigix Sheargun Sigix Sheargun Sigix Sheargun Sigix Sheargun Sigix Broadsword Sigix Containment Pod Peak State ------------ > --- POWER ------------ Matter Drive > --- PROPULSION ------- Sigix Exoskeleton > --- UTILITY ---------- Huge Storage Unit Advanced Weight Redist. System Quantum Shading Machine Triangulator Advanced Phase Shifter Heavy Regenerative Plating > --- WEAPON ----------- Sigix Sheargun Sigix Shearcannon > --- INVENTORY -------- GOLEM Unit Transdimensional Reconstructor Transdimensional Reconstructor Integrity Redistributor Integrity Redistributor Integrity Redistributor Terrabomb Terrabomb Terrabomb Microwarp Drive Sigix Sheargun Sigix Sheargun Sigix Sheargun Sigix Broadsword Sigix Containment Pod [Rating: 296] Favorites ----------- Power Micro Nuclear Core Engine Light Ion Engine Power Core Micro Nuclear Core Reactor Assembled Flux Generator Propulsion Combat Airjet Leg Assembled Alloy Leg Wheel Subdweller Monowheel Hover Unit Combat Airjet Flight Unit Biomechanical Wings Utility Medium Storage Unit Device GOLEM Unit Storage Medium Storage Unit Processor Tech Extrapolator Hackware Advanced Hacking Suite Protection Heavy Regenerative Plating Artifact Phase Armor Weapon Assembled Focal Cannon Energy Gun Cooled Plasma Rifle Energy Cannon Assembled Focal Cannon Ballistic Gun Assault Rifle Ballistic Cannon Battle Cannon Launcher Grenade Launcher Special Weapon Improved Remote Datajack Slashing Weapon Sigix Broadsword Piercing Weapon CR-A16's Behemoth Slayer Build | -11 -10 -10 -8 -8 -6 -6 -6 -6 -6 -6 -6 -5 -5 -5 -5 -5 -5 -5 -4 -4 -4 -4 -4 -3 -3 -3 -2 -2 -2 -1 -1 ------- Run | Yrd Mat Sub Rec Scr Fac Was Fac Low Low Zio Dee Pro Fac Was Fac Upp Upp War Pro Fac Upp Upp Zhi Pro Res Qua Res Tes Sec Acc Com Slots Evolved 22 | . . . . . 8 . . . . . . . 2 . . . . . . 2 . . . . 2 . 2 . . 6 . Power 2 | . . . . . 1 . . . . . . . . . . . . . . . . . . . . . . . . 1 . Propulsion 4 | . . . . . 2 . . . . . . . 1 . . . . . . 1 . . . . . . . . . . . Utility 15 | . . . . . 5 . . . . . . . 1 . . . . . . 1 . . . . 2 . 2 . . 4 . Weapon 1 | . . . . . . . . . . . . . . . . . . . . . . . . . . . . . . 1 . Parts Attached 368 | 12 12 27 2 15 54 . 11 3 2 1 46 1 13 4 6 2 2 7 3 32 2 1 1 . 21 28 11 13 10 20 6 Power 35 | 2 1 2 . 1 6 . 2 . 1 . . . 2 . 2 . . 1 . 6 . . . . 5 2 . . . 1 1 Engine 8 | 2 . 2 . . 1 . . . 1 . . . . . 1 . . 1 . . . . . . . . . . . . . Core 17 | . 1 . . 1 4 . 2 . . . . . 2 . 1 . . . . 3 . . . . 1 2 . . . . . Reactor 10 | . . . . . 1 . . . . . . . . . . . . . . 3 . . . . 4 . . . . 1 1 Propulsion 102 | 4 3 11 . 4 11 . 3 . . . 19 . 5 . . . . 2 . 9 1 . 1 . 8 1 8 12 . . . Treads . | . . . . . . . . . . . . . . . . . . . . . . . . . . . . . . . . Leg 4 | 2 . 1 . . . . . . . . 1 . . . . . . . . . . . . . . . . . . . . Wheel 11 | . . 6 . 2 . . . . . . 3 . . . . . . . . . . . . . . . . . . . . Hover 34 | 2 3 4 . 2 9 . 3 . . . 11 . . . . . . . . . . . . . . . . . . . . Flight 53 | . . . . . 2 . . . . . 4 . 5 . . . . 2 . 9 1 . 1 . 8 1 8 12 . . . Utility 142 | 3 5 6 2 6 24 . 2 3 . . 16 . 5 2 1 2 1 3 1 12 1 1 . . 6 15 3 1 9 10 2 Device 81 | 2 3 3 2 3 7 . 2 1 . . 10 . 3 1 1 1 . 3 . 8 1 . . . 5 12 3 . 7 3 . Storage 20 | 1 2 3 . 2 3 . . . . . 1 . . . . . . . . 2 . 1 . . 1 1 . . 2 1 . Processor 9 | . . . . 1 4 . . . . . . . . . . . 1 . . 1 . . . . . . . . . 2 . Hackware 10 | . . . . . 5 . . . . . . . 2 . . . . . 1 1 . . . . . . . 1 . . . Protection 21 | . . . . . 5 . . 2 . . 5 . . 1 . 1 . . . . . . . . . 1 . . . 4 2 Artifact 1 | . . . . . . . . . . . . . . . . . . . . . . . . . . 1 . . . . . Weapon 89 | 3 3 8 . 4 13 . 4 . 1 1 11 1 1 2 3 . 1 1 2 5 . . . . 2 10 . . 1 9 3 Energy Gun 32 | 1 . 1 . 2 7 . 4 . 1 . 2 1 1 1 2 . . 1 1 2 . . . . 1 . . . . 4 . Energy Cannon 16 | . . 1 . . 1 . . . . . . . . 1 1 . . . . . . . . . 1 7 . . . 3 1 Ballistic Gun 9 | 2 3 4 . . . . . . . . . . . . . . . . . . . . . . . . . . . . . Ballistic Cannon 7 | . . . . 1 1 . . . . . 4 . . . . . . . . . . . . . . 1 . . . . . Launcher 4 | . . 1 . . 2 . . . . . 1 . . . . . . . . . . . . . . . . . . . . Special Weapon 7 | . . 1 . . 1 . . . . 1 2 . . . . . . . . 1 . . . . . . . . . . 1 Impact Weapon . | . . . . . . . . . . . . . . . . . . . . . . . . . . . . . . . . Slashing Weapon 7 | . . . . . . . . . . . 1 . . . . . . . . . . . . . . 2 . . 1 2 1 Piercing Weapon 7 | . . . . 1 1 . . . . . 1 . . . . . 1 . 1 2 . . . . . . . . . . . Special Melee Weapon . | . . . . . . . . . . . . . . . . . . . . . . . . . . . . . . . . Unidentified Prototypes 38 | . . . . 1 14 . 1 1 . . 2 . . 1 3 . . 2 . 3 . . . . 2 6 . . . 2 . Corrupted Parts 3 | . . . . 1 . . . . . . . . . . . . . . 1 1 . . . . . . . . . . . System Corruption 19 | . . . . 7 . . . . . . . . . . . . . . 2 10 . . . . . . . . . . . Parts Lost 58 | 5 . 5 . . 8 . 1 2 1 . 7 . 4 . 2 . . 1 2 14 . . . . 1 1 3 . . . 1 Power 14 | 1 . 1 . . 1 . 1 . 1 . 1 . 1 . . . . . 1 6 . . . . . . . . . . . Propulsion 17 | 2 . . . . 3 . . . . . 5 . 1 . . . . 1 . 3 . . . . 1 . 1 . . . . Utility 19 | . . . . . 4 . . 1 . . 1 . 2 . 1 . . . 1 5 . . . . . 1 2 . . . 1 Weapon 8 | 2 . 4 . . . . . 1 . . . . . . 1 . . . . . . . . . . . . . . . . Highest Loss Streak 6 | 3 . 2 . . 3 . 1 1 1 . 6 . 2 . 2 . . 1 2 6 . . . . 1 1 2 . . . 1 To Critical Strikes 2 | . . . . . . . . . 1 . . . 1 . . . . . . . . . . . . . . . . . . Average Slot Usage (%) 85 | . 97 90 100 70 85 100 98 99 94 100 80 92 85 88 87 88 92 99 84 82 83 84 80 89 85 90 84 90 56 63 63 Engine 4 | . 2 12 14 13 1 . . . 2 6 3 . . . 2 5 5 5 5 1 . . . . . . . . . . . Core 3 | . 11 1 . . 8 13 12 13 8 6 2 . 6 11 8 5 5 5 1 2 . . . . 1 6 8 8 . . . Reactor 1 | . . . . . . . . . . . 2 6 1 . . . . . . 2 5 5 5 5 3 1 . . . 6 6 Leg 2 | . . . . . . . . . . . 4 . . . . . . . . 2 10 10 10 10 2 . . . 9 6 6 Wheel 1 | . . 9 . . . . . . . . 1 . . . . . . . . . . . . . . . . . . . . Hover 12 | . 26 18 28 27 23 26 25 26 26 26 12 26 8 . . . . . . . . . . . . . . . . . . Flight 8 | . . . . . . . . . . . . . 17 29 29 29 29 28 23 23 15 15 17 21 25 27 25 26 2 . . Device 10 | . 13 8 14 7 4 6 5 6 6 6 8 13 14 10 7 16 17 16 12 8 9 10 10 10 15 18 17 21 19 17 18 Storage 8 | . 14 12 14 13 5 6 6 6 6 6 3 6 5 5 5 5 5 5 5 6 9 10 10 10 9 9 8 8 10 6 6 Processor 11 | . . . . 3 19 26 26 22 20 20 19 20 17 17 17 17 17 23 23 17 15 15 15 15 14 14 10 8 . . . Hackware 2 | . . . . . 5 6 6 6 6 6 5 6 1 . . . . . . 5 5 5 5 5 4 4 4 7 . . . Protection 1 | . . . . . 1 . . 2 6 6 2 . . 1 2 . . . . . . . . . . . 4 4 . 6 11 Energy Gun 3 | . . . . . 8 13 12 12 9 13 4 5 4 5 4 5 5 10 10 4 . . . . . . . . . 16 3 Energy Cannon 2 | . . 3 . . . . . . . . . . . . . . . . . 1 10 10 4 10 6 5 . . . 1 5 Ballistic Gun 4 | . 27 19 14 1 . . . . . . . . . . . . . . . . . . . . . . . . . . . Launcher 1 | . . 1 14 1 . . . . . . 1 . . . . . . . . . . . . . . . . . . . . Peak Build Rating 296 | 15 18 40 44 41 91 91 93 96 97 97 177 120 126 118 111 110 106 116 114 149 149 149 158 158 174 185 196 211 234 296 296 Average Rating 93 | 9 15 30 29 23 73 90 89 93 93 96 92 114 111 108 107 99 103 110 105 115 148 148 143 158 159 171 192 204 221 283 289 On Entrance 115 | . 15 18 39 25 41 90 91 91 93 97 96 115 120 106 109 104 98 103 114 106 149 149 131 158 158 165 185 194 211 234 296 Naked Turns . | . . . . . . . . . . . . . . . . . . . . . . . . . . . . . . . . Heaviest Build 209 | 14 19 209 20 23 52 31 35 38 38 38 62 62 62 47 45 41 41 47 47 83 91 83 83 83 85 52 39 39 39 151 183 Greatest Support 151 | 24 24 40 24 24 55 41 41 41 41 41 84 62 62 54 54 54 54 54 52 60 60 60 60 60 69 61 46 48 100 149 151 Greatest Overweight (x) 10 | 3 1 10 . 1 1 . . . . . 1 . 1 . . . . 1 . 1 1 1 1 1 1 1 . . . 1 1 Average Overweight (x) . | . . 1 . . . . . . . . . . . . . . . . . . 1 . . 1 . . . . . . . Largest Inventory Capacity 45 | 8 10 40 45 45 45 35 35 35 35 35 35 30 30 30 20 20 20 20 20 20 20 20 20 20 20 15 15 15 25 25 25 Average Capacity 23 | 7 8 32 41 42 37 35 35 35 35 35 15 30 30 28 20 20 20 20 20 19 20 20 20 20 18 15 15 15 19 25 25 Most Carried 45 | 6 9 40 45 45 43 35 35 35 34 35 35 30 30 22 20 19 19 19 20 20 20 20 20 20 20 15 15 15 24 23 20 Average Carried 20 | 2 7 28 33 30 34 34 34 34 34 34 14 30 25 21 19 18 18 18 19 16 20 20 19 20 17 14 14 14 17 19 18 Final Capacity 45 | 8 10 40 45 45 35 35 35 35 35 35 30 30 30 20 20 20 20 20 20 20 20 20 20 20 15 15 15 15 25 25 25 Final Carried 43 | 4 9 39 33 43 35 35 35 34 34 35 30 30 20 20 19 19 18 19 19 20 20 20 20 20 15 15 15 15 24 19 20 Class Distribution -------------------- 19% | Hauler-Mutant 18% | Wizard-Mutant 16% | Mutant 10% | Hacker-Golem 7% | Alien-Sigix 7% | Hacker-Mutant 6% | Wizard-Sprinter 4% | Sprinter 3% | Hacker-Sprinter Dominant Class ---------------- Mutant | -10/Materials Hauler-Mutant | -10/Subcaves Hauler-Mutant | -8/Recycling Hauler-Mutant | -8/Scraptown Wizard-Mutant | -6/Factory Wizard-Mutant | -6/Waste Wizard-Mutant | -6/Factory Wizard-Mutant | -6/Lower Caves Wizard-Mutant | -6/Lower Caves Hauler-Mutant | -6/Zion Hacker-Golem | -6/Deep Caves Hauler-Sprinter | -5/Proximity Caves Hauler-Sprinter | -5/Factory Hauler-Sprinter | -5/Waste Sprinter | -5/Factory Sprinter | -5/Upper Caves Sprinter | -5/Upper Caves Sprinter | -5/Warlord Sprinter | -4/Proximity Caves Hacker-Sprinter | -4/Factory Hacker-Golem | -4/Upper Caves Hacker-Golem | -4/Upper Caves Hacker-Golem | -4/Zhirov Hacker-Mutant | -3/Proximity Caves Wizard-Sprinter | -3/Research Wizard-Sprinter | -3/Quarantine Hacker-Sprinter | -2/Research Wizard-Sprinter | -2/Testing Alien-Sigix | -2/Section 7 Alien-Sigix | -1/Access Alien-Sigix | -1/Command Resources | -11 -10 -10 -8 -8 -6 -6 -6 -6 -6 -6 -6 -5 -5 -5 -5 -5 -5 -5 -4 -4 -4 -4 -4 -3 -3 -3 -2 -2 -2 -1 -1 ----------- Run | Yrd Mat Sub Rec Scr Fac Was Fac Low Low Zio Dee Pro Fac Was Fac Upp Upp War Pro Fac Upp Upp Zhi Pro Res Qua Res Tes Sec Acc Com Matter Collected 6426 | 423 521 569 22 304 1160 49 124 35 25 . 621 30 125 40 50 40 20 65 20 709 83 57 . 136 210 256 104 150 160 230 88 Remotely . | . . . . . . . . . . . . . . . . . . . . . . . . . . . . . . . . Salvage Created 42210 | 430 521 976 262 . 3041 1063 1083 938 764 . 1860 461 993 . 1214 359 185 1287 513 3195 177 832 . 1046 3220 1442 2121 753 1770 5170 6534 Parts 1500 | 9 37 40 18 . 93 4 54 28 31 . 46 21 44 . 22 14 7 24 15 121 4 38 . 47 172 41 46 . . 253 271 Haulers Intercepted 14 | . 2 . . . 4 . . . . . . . . . 1 . . . . 1 . . . . . 1 2 1 1 1 . Recyclers Shooed 1 | . . . . . . . . . . . . . . . 1 . . . . . . . . . . . . . . . . Parts Field Recycled . | . . . . . . . . . . . . . . . . . . . . . . . . . . . . . . . . Retrieved Matter . | . . . . . . . . . . . . . . . . . . . . . . . . . . . . . . . . Parts Self-Destructed 204 | . . 9 . . . . . 28 27 . . 21 . . . 16 7 . 14 . 4 29 . 49 . . . . . . . Prevented 7 | . . . . . . . . 5 . . . . . . . . 1 . 1 . . . . . . . . . . . . Kills | -11 -10 -10 -8 -8 -6 -6 -6 -6 -6 -6 -6 -5 -5 -5 -5 -5 -5 -5 -4 -4 -4 -4 -4 -3 -3 -3 -2 -2 -2 -1 -1 ------- Run | Yrd Mat Sub Rec Scr Fac Was Fac Low Low Zio Dee Pro Fac Was Fac Upp Upp War Pro Fac Upp Upp Zhi Pro Res Qua Res Tes Sec Acc Com Combat Hostiles Destroyed 574 | 22 10 24 3 . 39 4 13 17 15 . 53 9 18 . 17 6 5 20 10 37 5 11 . 18 47 15 20 1 12 51 72 Melee 50 | . . . . . . . . . . . 2 . 8 . . . . . . 21 . . . . . 3 16 . . . . Guns 238 | 22 10 20 3 . 33 2 12 16 14 . 11 8 7 . 13 3 4 8 8 3 . . . . . . . . . 37 4 Cannons 181 | . . 3 . . 3 . . . . . . . . . . . . . . 7 5 10 . 18 47 6 . . . 14 68 AOE 33 | . . . . . . . . . . . 32 . 1 . . . . . . . . . . . . . . . . . . Classes Destroyed 36 | 3 5 3 1 . 6 1 3 1 1 . 3 1 . . . . . 2 . 2 . . . . 1 . . 2 1 . . Worker 19 | . 1 . . . 2 . 1 . . . . . . . 2 . . . . . . . . . 2 . . . . 4 7 Builder 7 | . . . . . . . 1 . . . . . . . . . . . . . . . . . 1 . . . . 5 . Tunneler 2 | 1 . . . . . . . . . . . . . . . . . . . . . . . . . . . . . 1 . Hauler 14 | . 2 . . . 4 . . . . . . . . . 1 . . . . 1 . . . . . 1 2 1 1 1 . Recycler 10 | . . . 1 . 4 . . . . . . . 1 . 1 . . . . 1 . . . . . . . . . 1 1 Carrier 4 | . . . . . . . . . . . . . . . . . . . . 1 . . . . . . . . . 1 2 Mechanic 3 | . . . . . . . . . . . . . . . . . . . . 1 . . . . . . . . . 1 1 Operator 7 | . . . . . . . 2 . . . . . 1 . . . . . . . . . . . . . 1 1 1 . 1 Drone 2 | . . . . . . . . . . . . 1 1 . . . . . . . . . . . . . . . . . . Watcher 52 | . 3 . . . 6 . 7 . . . . . 3 . 4 . . . . 4 . . . . 5 3 5 2 3 1 6 Swarmer 96 | . 3 5 . . 7 . 1 4 6 . . 2 10 . 8 4 4 . 5 3 4 . . 8 8 . . . . 5 9 Cutter 11 | . . . . . . . . . . . . . . . . . . . . . . . . . 9 . 2 . . . . Saboteur 1 | . . . . . . . . . . . . . . . . . . 1 . . . . . . . . . . . . . Grunt 133 | . 7 3 . . 17 . 4 10 4 . . 3 1 . 6 1 . 6 . 11 . . . 5 8 6 12 . 1 16 12 Brawler 15 | . . . . . 1 . 2 . . . . . . . 1 . . 5 . . . . . 1 . . . . . 4 1 Duelist 17 | . . . . . . . . 1 . . . 1 . . . 2 . 2 . 1 . . . 2 1 . . . . 3 4 Protector 6 | . . . . . 1 . . . . . . . . . . . . 1 . . . . . . . . 1 . . 1 2 Researcher 9 | . . . . . . . . . . . . . . . . . . . . . . . . . . . . 3 6 . . Sentry 44 | . . 1 3 . 7 . 4 1 1 . . 1 4 . . . . . 1 5 1 . . 1 8 . 2 . . 2 2 Demolisher 5 | 2 . . . . . . . . . . . . . . . . . 2 . . . . . . . . . . . . 1 Specialist 7 | . . . . . 1 . . . . . . . . . . . . . . 3 . . . . . . . . . . 3 Hunter 46 | . . . . . 1 . . . 2 . . . 3 . 1 . . . 2 6 . 6 . . 6 1 . . . 9 9 Programmer 44 | . . . . . 3 . . . . . . . . . . . . 1 1 9 . . . . 5 1 . . 1 8 15 Heavy 3 | . . . . . . . 1 . . . . . . . . . . . . . . . . . . . 1 . 1 . . Behemoth 22 | . . . . . 1 . 1 1 1 . . 1 . . 1 1 1 . 1 1 . 1 . 1 2 . 2 . 2 3 1 Compactor 4 | . . . . . . 4 . . . . . . . . . . . . . . . . . . . . . . . . . Quarantine Guard 4 | . . . . . . . . . . . . . . . . . . . . . . . . . . 4 . . . . . S7 Guard 1 | . . . . . . . . . . . . . . . . . . . . . . . . . . . . . 1 . . M Guard 2 | . . . . . . . . . . . . . . . . . . . . . . . . . . . . . . . 2 M Shell/Atk 4 | . . . . . . . . . . . . . . . . . . . . . . . . . . . . . . . 4 M Shell/Def 3 | . . . . . . . . . . . . . . . . . . . . . . . . . . . . . . . 3 Lightning 3 | . . . . . . . . . . . . . . . . . . . . . . . . . . 3 . . . . . Combat Programmer 2 | . . . . . . . . . . . . . . . . . . . . . . . . . . . . . . . 2 Striker 6 | . . . . . . . . . . . . . . . . . . 2 . . . . . . . . . . 4 . . Executioner 2 | . . . . . . . . . . . . . . . . . . . . . . . . . . . . . 2 . . Fortress 1 | . . . . . . . . . . . . . . . . . . . . . . . . . . . . 1 . . . Artisan 1 | . . 1 . . . . . . . . . . . . . . . . . . . . . . . . . . . . . Subdweller 15 | . . 15 . . . . . . . . . . . . . . . . . . . . . . . . . . . . . Z-Light 6 | . . . . . . . . . . . 6 . . . . . . . . . . . . . . . . . . . . Decomposer 1 | . . . . . . . . . . . . . . . . . . . . . . 1 . . . . . . . . . Assembler 2 | . . . . . . . . . . . 2 . . . . . . . . . . . . . . . . . . . . Assembled 56 | 20 . . . . . . . . . . 35 . . . . . . . . . . . . . . . . . . 1 . Golem 11 | . . . . . . . . . . . 11 . . . . . . . . . . . . . . . . . . . . Thug 1 | . . . . . . . . . . . . . . . . . . . . . . 1 . . . . . . . . . Butcher 3 | . . . . . . . . . . . . . . . . . . . . . . 3 . . . . . . . . . Mutant 1 | . . . . . . . . . 1 . . . . . . . . . . . . . . . . . . . . . . Best Kill Streak 51 | 5 3 3 2 . 11 3 4 4 7 . 46 7 8 . 13 5 4 15 17 12 4 4 . 7 11 8 6 4 5 23 51 Combat Bots Only 46 | 5 3 3 1 . 6 3 3 4 7 . 44 7 8 . 9 5 4 15 17 10 4 4 . 7 9 6 6 1 4 18 46 Max Kills in Single Turn 16 | 2 1 1 1 . 2 1 2 2 3 . 16 1 2 . 2 2 1 2 1 3 1 1 . 1 3 1 1 1 1 3 3 Gunslinging 1 | . . . . . . . . 1 . . . . . . . . . . . . . . . . . . . . . 1 . Exploded 16 | . . . . . . . . . . . 16 . 1 . . . . . . . . . . . . . . . . . . Melee 1 | . . . . . . . . . . . 1 . 1 . . . . . . 1 . . . . . 1 1 . . . . Uniques/NPCs Destroyed 3 | . . . . . . . . . . . 1 . . . . . . . . . . . . . . . . . . . 2 Z-Imprinter (-6/Deep Caves) MAIN.C Shell (-1/Command) MAIN.C (-1/Command) Combat | -11 -10 -10 -8 -8 -6 -6 -6 -6 -6 -6 -6 -5 -5 -5 -5 -5 -5 -5 -4 -4 -4 -4 -4 -3 -3 -3 -2 -2 -2 -1 -1 -------- Run | Yrd Mat Sub Rec Scr Fac Was Fac Low Low Zio Dee Pro Fac Was Fac Upp Upp War Pro Fac Upp Upp Zhi Pro Res Qua Res Tes Sec Acc Com Hostile Shots Fired 2170 | 45 56 155 2 . 231 . 41 44 29 . 52 32 60 . 33 8 25 53 41 227 21 35 . 36 73 72 111 . . 332 356 Missed 926 | 5 19 58 1 . 85 . 27 20 11 . 15 8 23 . 15 6 15 32 21 98 9 11 . 9 39 47 89 . . 99 164 Damage Taken 17864 | 891 351 900 11 34 1513 36 359 429 207 . 1202 503 511 . 611 25 88 498 260 2138 157 289 . 550 639 559 729 . 14 1442 2918 Core 4630 | 259 70 292 . 34 144 25 116 88 13 . 264 119 112 . 100 . . 262 104 761 46 36 . 76 125 67 236 . 4 406 871 Absorbed by Shields . | . . . . . . . . . . . . . . . . . . . . . . . . . . . . . . . . Redirected to Shielding 122 | . . . . . . . . . . . 122 . . . . . . . . . . . . . . . . . . . . Ignored by Resistances 13819 | 245 105 264 3 . 455 10 96 114 62 . 320 138 143 . 165 7 25 119 74 612 45 78 . 148 173 152 196 . 34 3723 6313 Regen/Repaired (Parts) 10846 | . 274 . . . 455 . 331 . . . . . 158 . 28 . . 111 . 188 . . . . . 337 318 . . 7262 1384 Core Remaining (%) 51 | 68 . . . 54 . . . . . . . 9 . . . . . . 42 . . . . 20 . 85 . . 77 . 54 Volleys Fired 943 | 41 47 98 4 . 110 6 27 21 18 1 53 10 18 . 43 6 5 36 12 35 6 13 . 20 70 27 . . . 92 124 Largest 3 | 2 2 2 1 . 2 2 2 2 1 2 2 1 1 . 1 1 1 1 1 2 2 2 . 2 2 2 . . . 3 2 Hottest 300 | 60 40 80 25 . 107 87 87 87 24 84 78 24 24 . 24 72 24 24 24 50 50 50 . 50 65 90 . . . 300 280 Shots Fired 1448 | 53 94 127 4 . 169 12 54 37 18 2 65 10 18 . 43 6 5 36 12 39 17 29 . 42 92 49 . . . 247 168 Gun 952 | 53 94 110 4 . 116 12 54 37 18 2 33 10 18 . 43 6 5 36 12 19 . . . . . 1 . . . 225 44 Cannon 477 | . . 11 . . 53 . . . . . 24 . . . . . . . . 19 17 29 . 42 92 48 . . . 22 120 Launcher 8 | . . 6 . . . . . . . . 2 . . . . . . . . . . . . . . . . . . . . Special 11 | . . . . . . . . . . . 6 . . . . . . . . 1 . . . . . . . . . . 4 Kinetic 317 | 41 94 109 4 . 53 . . . . . 16 . . . . . . . . . . . . . . . . . . . . Thermal 637 | 12 . 12 . . 116 12 54 37 18 1 33 10 18 . 43 6 5 36 12 38 17 29 . 42 73 13 . . . . . Explosive 6 | . . 6 . . . . . . . . . . . . . . . . . . . . . . . . . . . . . Electromagnetic 56 | . . . . . . . . . . 1 . . . . . . . . . . . . . . 19 36 . . . . . Slashing 411 | . . . . . . . . . . . . . . . . . . . . . . . . . . . . . . 247 164 Entropic 10 | . . . . . . . . . . . 10 . . . . . . . . . . . . . . . . . . . . Robot Hit Streak 88 | 17 16 29 16 . 51 43 75 62 19 . 29 36 28 . 39 5 6 35 88 39 8 32 . 17 55 25 . . . 32 45 Robot Miss Streak 6 | 3 3 1 1 . 4 . 3 1 3 . 3 1 1 . 6 2 3 2 1 2 2 2 . 3 3 5 . . . 4 6 Penetration Max 1 | . . . . . . . . . . . . . . . . . . . . . . . . . . . . . . 1 1 Secondary Targets 22 | . 1 . . . . . 1 4 . . . . . . . . . . . . . . . . . . . . . 16 . Max Gunslinging Chain 2 | . 1 . . . . . 1 1 . . . . . . . . . . . . . . . . . . . . . 2 . Capacitor 9 | . . . . . . . . . . . . . . . . . . . . 9 . . . . . . . . . . . Shots Hit Robots 1349 | 48 74 98 4 . 133 9 32 26 15 . 71 18 33 . 40 6 6 33 13 107 6 22 . 27 65 37 54 8 23 183 158 Core Hits 1196 | 47 28 40 6 . 117 2 29 20 19 . 129 17 23 . 29 6 4 29 18 77 5 20 . 27 86 23 21 . . 129 245 Critical Kills 1 | 1 . . . . . . . . . . . . . . . . . . . . . . . . . . . . . . . Critical Parts Destroyed 1 | 1 . . . . . . . . . . . . . . . . . . . . . . . . . . . . . . . Critical Strikes 362 | 2 . 87 . . 37 1 6 5 6 . 32 4 13 . 54 14 8 17 3 45 . . . . . 6 5 . . 5 12 Burn 146 | . . . . . 8 . 1 4 6 . 13 3 9 . 54 14 8 17 3 6 . . . . . . . . . . . Destroy 2 | 2 . . . . . . . . . . . . . . . . . . . . . . . . . . . . . . . Blast 142 | . . 87 . . 29 1 5 1 . . 19 . . . . . . . . . . . . . . . . . . . . Corrupt 2 | . . . . . . . . . . . . . . . . . . . . . . . . . . 2 . . . . . Sever 26 | . . . . . . . . . . . . . . . . . . . . . . . . . . 4 5 . . 5 12 Impale 7 | . . . . . . . . . . . . 1 4 . . . . . . 2 . . . . . . . . . . . Sunder 37 | . . . . . . . . . . . . . . . . . . . . 37 . . . . . . . . . . . Melee Attacks 286 | . . . . . . . . . . . 13 8 20 . . 1 1 . 1 79 . . . . . 20 59 20 40 4 20 Impact . | . . . . . . . . . . . . . . . . . . . . . . . . . . . . . . . . Slashing 163 | . . . . . . . . . . . . . . . . . . . . . . . . . . 20 59 20 40 4 20 Piercing 123 | . . . . . . . . . . . 13 8 20 . . 1 1 . 1 79 . . . . . . . . . . . Sneak Attacks 51 | . . . . . . . . . . . . . 3 . . . . . . 2 . . . . . 2 13 8 23 . . Combat Hostiles 22 | . . . . . . . . . . . . . 2 . . . . . . . . . . . . 2 5 1 12 . . Follow-up Attacks . | . . . . . . . . . . . . . . . . . . . . . . . . . . . . . . . . Damage Inflicted 112491 | 1380 811 1376 171 . 7195 924 3205 2414 1431 . 5860 926 2185 . 1749 593 190 3073 898 8765 884 3173 . 3461 8070 3178 4616 . . 17230 28733 Guns 45891 | 1380 796 1115 171 . 6290 924 3038 2414 1431 . 2869 664 1442 . 1749 593 190 3073 898 1898 . . . . . . . . . 12180 2776 Cannons 51318 | . . 215 . . 811 . . . . . 398 . . . . . . . . 2502 884 3173 . 3461 8070 1829 . . . 4841 25134 Explosions 2674 | . . 46 . . 94 . 155 . . . 2114 . . . . . . . . . . . . . . 56 . . . 209 . Melee 12581 | . . . . . . . . . . . 479 262 743 . . . . . . 4365 . . . . . 1293 4616 . . . 823 Ramming 27 | . 15 . . . . . 12 . . . . . . . . . . . . . . . . . . . . . . . . Kinetic 6497 | 1293 796 1115 171 . 811 . . . . . 2311 . . . . . . . . . . . . . . . . . . . . Thermal 45254 | 87 . 215 . . 6384 924 3193 2414 1431 . 2869 664 1442 . 1749 593 190 3073 898 4400 884 3173 . 3461 6904 190 . . . 116 . Explosive 46 | . . 46 . . . . . . . . . . . . . . . . . . . . . . . . . . . . . Electromagnetic 2954 | . . . . . . . . . . . . . . . . . . . . . . . . . 1166 1695 . . . 93 . Impact . | . . . . . . . . . . . . . . . . . . . . . . . . . . . . . . . . Slashing 51663 | . . . . . . . . . . . . . . . . . . . . . . . . . . 1293 4616 . . 17021 28733 Piercing 5849 | . . . . . . . . . . . 479 262 743 . . . . . . 4365 . . . . . . . . . . . Entropic 201 | . . . . . . . . . . . 201 . . . . . . . . . . . . . . . . . . . . Highest Corruption 11 | . . . . 7 1 1 1 1 1 1 . . . . . . . . 2 11 4 4 4 4 . 1 . . . . . Average Corruption 2 | . . . . 7 1 1 1 1 1 1 . . . . . . . . 2 3 4 4 4 4 . 1 . . . . . Corruption Purged 11 | . . . . . . . . . . . . . . . . . . . . 11 . . . . . . . . . . . Corruption Blocked 5 | . . . . . 5 . . . . . . . . . . . . . . . . . . . . . . . . . . Effects 166 | . . . . 17 18 1 8 1 1 . . . . . . . . . . 14 41 28 4 30 . 3 . . . . . Message Errors 43 | . . . . 4 7 . 1 1 . . . . . . . . . . . 5 9 9 . 6 . 1 . . . . . Matter Fused 42 | . . . . 4 3 1 3 . 1 . . . . . . . . . . 2 10 6 1 11 . . . . . . . Heat Flow Errors 18 | . . . . 2 1 . 1 . . . . . . . . . . . . . 7 2 . 4 . 1 . . . . . Energy Discharges 21 | . . . . 5 3 . 1 . . . . . . . . . . . . 4 4 2 . 2 . . . . . . . Parts Rejected 2 | . . . . . . . . . . . . . . . . . . . . . 1 . . . . 1 . . . . . Parts Fused 1 | . . . . . 1 . . . . . . . . . . . . . . . . . . . . . . . . . . Data Loss (minor) 18 | . . . . 2 . . 2 . . . . . . . . . . . . 2 3 3 2 4 . . . . . . . Data Loss (major) 3 | . . . . . 1 . . . . . . . . . . . . . . . 1 1 . . . . . . . . . Misfires 13 | . . . . . 2 . . . . . . . . . . . . . . 1 5 3 . 2 . . . . . . . Alerts 5 | . . . . . . . . . . . . . . . . . . . . . 1 2 1 1 . . . . . . . Overload Shots 3 | . . . . . . . . . . . . . . . . 3 . . . . . . . . . . . . . . . Effects 1 | . . . . . . . . . . . . . . . . 1 . . . . . . . . . . . . . . . Heat Surge 1 | . . . . . . . . . . . . . . . . 1 . . . . . . . . . . . . . . . Overflow Damage 2024 | . . . . . 21 . 44 . . . 41 . 26 . . . . . . 411 56 80 . 91 240 95 502 . . 73 344 Projectiles 1047 | . . . . . 21 . . . . . . . . . . . . . . 69 56 80 . 91 240 95 . . . 51 344 Explosions 107 | . . . . . . . 44 . . . 41 . . . . . . . . . . . . . . . . . . 22 . Melee 870 | . . . . . . . . . . . . . 26 . . . . . . 342 . . . . . . 502 . . . . Knockbacks 14 | . . . . . 8 . . . . . 6 . . . . . . . . . . . . . . . . . . . . Impact . | . . . . . . . . . . . . . . . . . . . . . . . . . . . . . . . . Kinetic 14 | . . . . . 8 . . . . . 6 . . . . . . . . . . . . . . . . . . . . Secondary . | . . . . . . . . . . . . . . . . . . . . . . . . . . . . . . . . Self-Inflicted Damage 42 | . 7 15 . . . . 6 . . . . . . . . . . . . . . . . . . . . . . . 14 Shots 2 | . . 1 . . . . . . . . . . . . . . . . . . . . . . . . . . . . 1 Rammed 2 | . 1 . . . . . 1 . . . . . . . . . . . . . . . . . . . . . . . . Targets Rammed 2 | . 1 . . . . . 1 . . . . . . . . . . . . . . . . . . . . . . . . Kicked . | . . . . . . . . . . . . . . . . . . . . . . . . . . . . . . . . Crushed . | . . . . . . . . . . . . . . . . . . . . . . . . . . . . . . . . Highest Temperature 372 | . 34 . 14 266 285 69 291 119 8 29 77 . 3 . . 220 . 11 2 354 244 221 . 205 25 372 . 80 37 34 50 Average Temperature 64 | . 9 . 8 126 76 34 45 42 5 17 27 . 3 . . 87 . 7 2 84 94 104 . 92 7 122 . 24 19 9 20 Received Heat Transfer 2924 | . 240 399 9 . 414 . 57 136 12 . 294 93 21 . 36 12 . 96 18 337 9 9 . 36 66 30 123 . . 144 333 Effects 4 | . . . . . . . . . . . . . . . . 2 . . . 1 . . . . . 1 . . . . . Shutdowns 2 | . . . . . . . . . . . . . . . . . . . . 1 . . . . . 1 . . . . . Interference 2 | . . . . . . . . . . . . . . . . 2 . . . . . . . . . . . . . . . Siege Activations . | . . . . . . . . . . . . . . . . . . . . . . . . . . . . . . . . Robots Corrupted 2 | . . . . . . . . . . . . . . . . . . . . . . . . . . 2 . . . . . Combat Hostiles 1 | . . . . . . . . . . . . . . . . . . . . . . . . . . 1 . . . . . Parts Fried 37 | . . . . . . . 2 . . . . . . . . . . . . . . . . . 10 25 . . . . . Impact Corruptions . | . . . . . . . . . . . . . . . . . . . . . . . . . . . . . . . . Robots Melted 52 | . . . . . 4 2 1 1 1 . 9 . 5 . 7 2 . 12 1 6 . 1 . . . . . . . . . Combat Hostiles 43 | . . . . . 3 2 1 1 1 . 8 . 2 . 4 2 . 12 1 5 . 1 . . . . . . . . . Parts Melted 261 | . . 1 . . 32 3 13 8 11 . 24 4 18 . 45 9 2 34 11 21 1 5 . 4 5 1 . . . 8 1 Heat Transferred 67927 | 200 . 296 . . 9973 1075 3251 2658 2550 . 6796 1700 3900 . 9000 2890 1200 7281 2100 5082 475 1750 . 1900 3675 125 . . . 50 . Parts Sabotaged 2 | . . . . . . . . . . . . . . . . . . 2 . . . . . . . . . . . . . Parts Stolen . | . . . . . . . . . . . . . . . . . . . . . . . . . . . . . . . . Parts Stripped 508 | . . . . . . . . . . . . . . . . . . . . . . . . . . 60 124 85 239 . . Power Chain Reactions 3 | . . . . . . . . . . . . . . . . . . . . . . . . . . 1 . . . 2 . Alert | -11 -10 -10 -8 -8 -6 -6 -6 -6 -6 -6 -6 -5 -5 -5 -5 -5 -5 -5 -4 -4 -4 -4 -4 -3 -3 -3 -2 -2 -2 -1 -1 ------- Run | Yrd Mat Sub Rec Scr Fac Was Fac Low Low Zio Dee Pro Fac Was Fac Upp Upp War Pro Fac Upp Upp Zhi Pro Res Qua Res Tes Sec Acc Com Peak Influence 2375 | 40 287 . 201 . 523 69 862 . . . . . 608 138 1253 . . . . 1133 . . . . 879 584 799 362 492 2375 2080 Initial 1335 | . 8 . 12 . . 19 35 . . . . . 70 138 85 . . . . 124 . . . . . 176 285 324 97 212 1335 Average 315 | 1 95 . 31 . 267 53 576 . . . . . 415 138 817 . . . . 526 . . . . 217 352 577 190 311 1281 1752 Maximum Alert Level 5 | . 1 . 1 . 2 . 3 . . . . . 2 . 4 . . . . 4 . . . . 3 2 3 1 2 5 5 Low Security (%) 50 | 100 89 . 95 . 35 100 16 . . . . . 9 100 7 . . . . 15 . . . . 58 2 . 77 18 . . Level 1 16 | . 10 . 4 . 40 . 1 . . . . . 25 . 4 . . . . 28 . . . . 24 74 19 22 70 10 . Level 2 14 | . . . . . 24 . 40 . . . . . 65 . 32 . . . . 26 . . . . 9 23 62 . 11 9 . Level 3 6 | . . . . . . . 41 . . . . . . . 23 . . . . 24 . . . . 6 . 18 . . 21 . Level 4 2 | . . . . . . . . . . . . . . . 32 . . . . 5 . . . . . . . . . 27 10 Level 5 6 | . . . . . . . . . . . . . . . . . . . . . . . . . . . . . . . 81 High Security . | . . . . . . . . . . . . . . . . . . . . . . . . . . . . . . . 8 Max Security . | . . . . . . . . . . . . . . . . . . . . . . . . . . . . . . 31 . Squads Dispatched 88 | . 2 . . . 9 . 13 . . . . . 3 . 6 . . . . 13 . . . . 6 3 4 1 . 23 5 Investigation 13 | . 2 . . . 2 . 2 . . . . . 2 . . . . . . 3 . . . . . 1 . . . 1 . Extermination 16 | . . . . . 4 . 2 . . . . . 1 . . . . . . 4 . . . . 2 . 1 1 . 1 . Reinforcement 24 | . . . . . 1 . 5 . . . . . . . 4 . . . . 2 . . . . 4 2 3 . . 3 . Assault 28 | . . . . . 1 . 1 . . . . . . . 2 . . . . 4 . . . . . . . . . 15 5 Garrison 7 | . . . . . 1 . 3 . . . . . . . . . . . . . . . . . . . . . . 3 . Intercept . | . . . . . . . . . . . . . . . . . . . . . . . . . . . . . . . . Searches Triggered . | . . . . . . . . . . . . . . . . . . . . . . . . . . . . . . . . Construction Impeded 4 | . . . . . . . 2 . . . . . . . 1 . . . . . . . . . . . . . . 1 . Haulers Reinforced 6 | . . . . . . . 2 . . . . . . . 2 . . . . . . . . . . 1 . . . 1 . Active Scanning Responses . | . . . . . . . . . . . . . . . . . . . . . . . . . . . . . . . . Cargo Convoy Interrupts 5 | . . . . . 1 . 1 . . . . . 1 . . . . . . 1 . . . . . . 1 . . . . Stealth | -11 -10 -10 -8 -8 -6 -6 -6 -6 -6 -6 -6 -5 -5 -5 -5 -5 -5 -5 -4 -4 -4 -4 -4 -3 -3 -3 -2 -2 -2 -1 -1 --------- Run | Yrd Mat Sub Rec Scr Fac Was Fac Low Low Zio Dee Pro Fac Was Fac Upp Upp War Pro Fac Upp Upp Zhi Pro Res Qua Res Tes Sec Acc Com Distress Signals 35 | . . . . . 1 . 4 . . . . . 3 . 2 . . . . 1 . . . . 4 1 . . . 4 15 Communications Jammed . | . . . . . . . . . . . . . . . . . . . . . . . . . . . . . . . . Distress Signals . | . . . . . . . . . . . . . . . . . . . . . . . . . . . . . . . . Times Spotted 710 | 22 16 40 1 . 57 5 28 19 15 . 64 8 28 . 36 10 7 21 19 62 5 10 . 17 48 22 19 . . 60 71 Peak Tracking Total 37 | 5 3 6 1 . 7 4 3 4 7 . 37 4 7 . 7 5 5 14 9 6 4 3 . 5 5 5 8 1 . 18 13 Tactical Retreats 33 | . 2 9 . . 4 . . 3 . . . . 1 . 2 . . . 1 6 . . . . 1 . 1 . . . 3 Traps | -11 -10 -10 -8 -8 -6 -6 -6 -6 -6 -6 -6 -5 -5 -5 -5 -5 -5 -5 -4 -4 -4 -4 -4 -3 -3 -3 -2 -2 -2 -1 -1 ------- Run | Yrd Mat Sub Rec Scr Fac Was Fac Low Low Zio Dee Pro Fac Was Fac Upp Upp War Pro Fac Upp Upp Zhi Pro Res Qua Res Tes Sec Acc Com Traps Triggered 18 | . 1 1 . . 1 . . . . . . . 3 . 2 . . . . 1 . . . . . 1 1 4 1 1 1 Indirectly . | . . . . . . . . . . . . . . . . . . . . . . . . . . . . . . . . Trap Hack Attempts . | . . . . . . . . . . . . . . . . . . . . . . . . . . . . . . . . Triggered . | . . . . . . . . . . . . . . . . . . . . . . . . . . . . . . . . Disarmed 10 | . . . . . . . 10 . . . . . . . . . . . . . . . . . . . . . . . . Reprogrammed 63 | . 11 . . . 4 . 15 . . . . . . . . . . . . 33 . . . . . . . . . . . Reused 11 | . . . . . . . 2 . . . . . . . . . . . . 9 . . . . . . . . . . . Traps Extracted . | . . . . . . . . . . . . . . . . . . . . . . . . . . . . . . . . Installed . | . . . . . . . . . . . . . . . . . . . . . . . . . . . . . . . . Triggered 28 | . . 1 . . . . 2 1 . . . . 3 . . . 1 8 . 9 . 2 . . . . . . . . 1 Machines | -11 -10 -10 -8 -8 -6 -6 -6 -6 -6 -6 -6 -5 -5 -5 -5 -5 -5 -5 -4 -4 -4 -4 -4 -3 -3 -3 -2 -2 -2 -1 -1 ---------- Run | Yrd Mat Sub Rec Scr Fac Was Fac Low Low Zio Dee Pro Fac Was Fac Upp Upp War Pro Fac Upp Upp Zhi Pro Res Qua Res Tes Sec Acc Com Machines Disabled 105 | . . 1 . . 8 . 27 . 4 . 3 . 4 . 3 . . 2 . 10 . . . . 8 9 . 6 9 5 6 Max in Single Turn 7 | . . 1 . . 7 . 4 . 1 . 1 . 1 . 1 . . 1 . 5 . . . . 2 2 . 1 1 1 2 Garrison Access 3 | . . . . . . . . . . . . . . . 1 . . . . . . . . . . . . . . 2 . Phase Generator 1 | . . . . . . . . . . . . . . . . . . . . . . . . . . . . . . . 1 Machines Repaired 2 | . . . . . . . . . . . . . . . . . . . . . . . . . 1 1 . . . . . Machines Dismantled . | . . . . . . . . . . . . . . . . . . . . . . . . . . . . . . . . Machines Sabotaged . | . . . . . . . . . . . . . . . . . . . . . . . . . . . . . . . . Overloaded Fab Kills . | . . . . . . . . . . . . . . . . . . . . . . . . . . . . . . . . Hacking | -11 -10 -10 -8 -8 -6 -6 -6 -6 -6 -6 -6 -5 -5 -5 -5 -5 -5 -5 -4 -4 -4 -4 -4 -3 -3 -3 -2 -2 -2 -1 -1 --------- Run | Yrd Mat Sub Rec Scr Fac Was Fac Low Low Zio Dee Pro Fac Was Fac Upp Upp War Pro Fac Upp Upp Zhi Pro Res Qua Res Tes Sec Acc Com Machines Accessed 174 | . 8 4 11 8 23 . 17 1 . . . . 13 . 2 . 1 4 . 21 1 1 3 . 13 17 2 11 7 2 4 Terminals 99 | . 5 . 6 . 12 . 10 . . . . . 8 . . . 1 . . 11 . . . . 11 14 1 8 7 1 4 Fabricators 11 | . . . . . 2 . 1 . . . . . 1 . . . . . . 5 . . . . 1 . . 1 . . . Repair Stations 7 | . 1 . . . 1 . 1 . . . . . 1 . . . . . . 1 . . . . . 1 . . . 1 . Recycling Units 13 | . 2 . 3 . 3 . 1 . . . . . 2 . . . . . . 2 . . . . . . . . . . . Scanalyzers 11 | . . . . . 2 . 2 . . . . . 1 . 1 . . . . 1 . . . . 1 2 . 1 . . . Garrison Access 9 | . . . . . 3 . 2 . . . . . . . 1 . . . . 1 . . . . . . 1 1 . . . Total Hacks 1001 | . 82 15 42 54 197 . 99 1 . . . . 89 . 7 . 1 8 . 144 1 1 10 . 88 65 16 40 15 20 6 Successful 848 | . 40 15 35 54 172 . 99 1 . . . . 65 . 3 . 1 8 . 116 1 1 10 . 82 65 15 39 13 11 2 Failed 153 | . 42 . 7 . 25 . . . . . . . 24 . 4 . . . . 28 . . . . 6 . 1 1 2 9 4 Catastrophic 24 | . 9 . 1 . 1 . . . . . . . 4 . . . . . . 3 . . . . 1 . . . . 3 2 Database Lockouts . | . . . . . . . . . . . . . . . . . . . . . . . . . . . . . . . . Manual 377 | . 31 . 7 . 62 . 38 . . 5 . . 38 . . . . . . 73 . . . . 55 30 13 13 6 5 1 Terminals 555 | . 55 . 13 . 78 . 68 . . . . . 61 . . . 1 . . 93 . . . . 69 49 13 25 15 9 6 Fabricators 66 | . . . . . 22 . 4 . . . . . 7 . . . . . . 24 . . . . 5 . . 4 . . . Repair Stations 94 | . 22 . . . 22 . 12 . . . . . 11 . . . . . . 11 . . . . . 5 . . . 11 . Recycling Units 26 | . 5 . 5 . 8 . 1 . . . . . 4 . . . . . . 3 . . . . . . . . . . . Scanalyzers 115 | . . . . . 57 . 7 . . . . . 6 . 2 . . . . 9 . . . . 14 11 . 9 . . . Garrison Access 31 | . . . . . 10 . 7 . . . . . . . 5 . . . . 4 . . . . . . 3 2 . . . Terminal Hacks 431 | . 20 15 31 54 52 . 61 1 . . . . 25 . . . 1 8 . 43 1 1 10 . 33 26 8 21 10 8 2 Record 96 | . . 12 24 54 . . . . . . . . . . . . 1 2 . . . . . . . 3 . . . . . Part Schematic 48 | . . . 1 . 10 . 11 . . . . . 2 . . . . . . 6 . . 2 . 4 4 1 5 . 2 . Robot Schematic 8 | . . . . . 2 . 2 . . . . . 1 . . . . . . 1 . . . . . 1 . . . 1 . Robot Analysis 19 | . 1 . . . 3 . 1 . . . . . 1 . . . . . . 2 . . 4 . . 3 . 3 1 . . Prototype ID Bank 42 | . 3 . 2 . 3 . 4 . . . . . 4 . . . . 4 . 3 . . 4 . 5 3 2 3 1 1 . Open Door 12 | . . 1 . . . . . 1 . . . . . . . . . 2 . . 1 1 . . . 1 . . 5 . . Level Access Points 5 | . 1 . . . . . . . . . . . 1 . . . . . . 1 . . . . . . 1 . . 1 . Branch Access Points 11 | . 1 . 1 . 1 . 2 . . . . . 2 . . . . . . 1 . . . . . 1 1 . . 1 . Emergency Access Points 10 | . 1 . . . 2 . . . . . . . . . . . . . . 3 . . . . 1 2 . 1 . . . Machine Index 9 | . . . . . 1 . 1 . . . . . . . . . . . . 1 . . . . 1 . 1 1 2 1 . Terminal Index 5 | . 2 . . . 1 . 1 . . . . . 1 . . . . . . . . . . . . . . . . . . Fabricator Index 2 | . . . . . . . . . . . . . 1 . . . . . . . . . . . . 1 . . . . . Repair Station Index 1 | . . . . . . . . . . . . . 1 . . . . . . . . . . . . . . . . . . Scanalyzer Index 2 | . . . . . . . . . . . . . 1 . . . . . . . . . . . 1 . . . . . . Alert Level 8 | . . . . . 2 . 1 . . . . . . . . . . . . 3 . . . . 2 . . . . . . Unreport Threat 23 | . 1 . . . 6 . 6 . . . . . . . . . . . . . . . . . 8 . . 2 . . . Locate Traps 31 | . 4 . . . 9 . 5 . . . . . 3 . . . . . . 5 . . . . 3 . . 1 1 . . Disarm Traps 3 | . . . . . . . 3 . . . . . . . . . . . . . . . . . . . . . . . . Reprogram Traps 16 | . 3 . . . 1 . 5 . . . . . . . . . . . . 7 . . . . . . . . . . . Dispatch Records 10 | . . . . . 1 . 3 . . . . . 1 . . . . . . 2 . . . . 1 2 . . . . . Security Status 2 | . . . . . . . 2 . . . . . . . . . . . . . . . . . . . . . . . . Recall Investigation 7 | . 1 . . . 1 . 1 . . . . . 1 . . . . . . 2 . . . . . . . . . 1 . Recall Extermination 7 | . . . . . 2 . 1 . . . . . . . . . . . . 1 . . . . 2 . . 1 . . . Recall Reinforcements 8 | . . . . . 1 . 4 . . . . . . . . . . . . . . . . . 1 2 . . . . . Recall Assault 2 | . . . . . 1 . 1 . . . . . . . . . . . . . . . . . . . . . . . . Hauler Manifests 12 | . . . . . 1 . 3 . . . . . 2 . . . . . . 2 . . . . 2 2 . . . . . Registered Components 8 | . 1 . . . 1 . 2 . . . . . 1 . . . . . . 1 . . . . 1 . 1 . . . . Registered Prototypes 9 | . 1 . . . 1 . 2 . . . . . 1 . . . . . . 1 . . . . 1 1 1 . . . . Zone Layout 11 | . . . 3 . 2 . . . . . . . 1 . . . . . . 1 . . . . . . . 4 . . . Derelict Proto ID Bank 1 | . . 1 . . . . . . . . . . . . . . . . . . . . . . . . . . . . . Disengage Seal 2 | . . . . . . . . . . . . . . . . . . . . . . . . . . . . . . . 2 Release Object 1 | . . 1 . . . . . . . . . . . . . . . . . . . . . . . . . . . . . Fabricator Hacks 26 | . . . . . 11 . 1 . . . . . 3 . . . . . . 9 . . . . 1 . . 1 . . . Network Status 12 | . . . . . 3 . 1 . . . . . 1 . . . . . . 5 . . . . 1 . . 1 . . . Load Schematic 6 | . . . . . 4 . . . . . . . 1 . . . . . . 1 . . . . . . . . . . . Build 8 | . . . . . 4 . . . . . . . 1 . . . . . . 3 . . . . . . . . . . . Repair Station Hacks 73 | . 16 . . . 22 . 12 . . . . . 6 . . . . . . 9 . . . . . 5 . . . 3 . Scan Component 37 | . 8 . . . 11 . 6 . . . . . 3 . . . . . . 5 . . . . . 2 . . . 2 . Repair 33 | . 7 . . . 11 . 6 . . . . . 3 . . . . . . 3 . . . . . 2 . . . 1 . Refit 3 | . 1 . . . . . . . . . . . . . . . . . . 1 . . . . . 1 . . . . . Recycling Unit Hacks 6 | . 2 . 1 . . . . . . . . . 2 . . . . . . 1 . . . . . . . . . . . Report Inventory 5 | . 1 . 1 . . . . . . . . . 2 . . . . . . 1 . . . . . . . . . . . Retrieve Components 1 | . 1 . . . . . . . . . . . . . . . . . . . . . . . . . . . . . . Scanalyzer 99 | . . . . . 46 . 7 . . . . . 6 . 2 . . . . 5 . . . . 14 10 . 9 . . . Insert Component 49 | . . . . . 21 . 4 . . . . . 3 . 1 . . . . 2 . . . . 8 6 . 4 . . . Analyze 50 | . . . . . 25 . 3 . . . . . 3 . 1 . . . . 3 . . . . 6 4 . 5 . . . Garrison Access Hacks 1 | . . . . . . . . . . . . . . . 1 . . . . . . . . . . . . . . . . Seal Access 1 | . . . . . . . . . . . . . . . 1 . . . . . . . . . . . . . . . . Unauthorized Hacks 212 | . 2 . 3 . 41 . 18 . . . . . 23 . . . . . . 49 . . . . 34 24 7 8 3 . . Terminals 129 | . . . . . 12 . 7 . . . . . 18 . . . . . . 29 . . . . 30 23 4 3 3 . . Track 27 | . . . . . 3 . . . . . . . 4 . . . . . . 5 . . . . 7 6 1 . 1 . . Assimilate 24 | . . . . . 2 . . . . . . . 3 . . . . . . 5 . . . . 6 4 . 3 1 . . Botnet 31 | . . . . . 5 . 1 . . . . . 4 . . . . . . 7 . . . . 8 5 1 . . . . Detonate 1 | . . . . . . . . . . . . . . . . . . . . . . . . . . 1 . . . . . Disrupt 5 | . . . . . . . . . . . . . 1 . . . . . . 1 . . . . 2 1 . . . . . Operators 13 | . . . . . 2 . 1 . . . . . 1 . . . . . . 4 . . . . 2 1 1 . 1 . . Skim 28 | . . . . . . . 5 . . . . . 5 . . . . . . 7 . . . . 5 5 1 . . . . Fabricators 38 | . . . . . 10 . 3 . . . . . 3 . . . . . . 15 . . . . 4 . . 3 . . . Report 10 | . . . . . 2 . 1 . . . . . 1 . . . . . . 4 . . . . 1 . . 1 . . . Prioritize 4 | . . . . . 2 . . . . . . . . . . . . . . 1 . . . . 1 . . . . . . Liberate 8 | . . . . . 2 . . . . . . . . . . . . . . 4 . . . . 1 . . 1 . . . Fabnet 8 | . . . . . 2 . 1 . . . . . 1 . . . . . . 3 . . . . 1 . . . . . . Haulers 8 | . . . . . 2 . 1 . . . . . 1 . . . . . . 3 . . . . . . . 1 . . . Repair Stations 6 | . . . . . 1 . 1 . . . . . 2 . . . . . . 2 . . . . . . . . . . . Recycling Units 12 | . 2 . 3 . 7 . . . . . . . . . . . . . . . . . . . . . . . . . . Monitor 2 | . . . . . 2 . . . . . . . . . . . . . . . . . . . . . . . . . . Reject 2 | . . . . . 2 . . . . . . . . . . . . . . . . . . . . . . . . . . Recyclers 1 | . . . . . 1 . . . . . . . . . . . . . . . . . . . . . . . . . . Mask 2 | . . . . . 2 . . . . . . . . . . . . . . . . . . . . . . . . . . Tunnel 5 | . 2 . 3 . . . . . . . . . . . . . . . . . . . . . . . . . . . . Fedlink 5 | . . . . . 1 . 1 . . . . . 2 . . . . . . 1 . . . . . . . . . . . Scrapoids 1 | . . . . . . . . . . . . . . . . . . . . 1 . . . . . . . . . . . Scanalyzers 3 | . . . . . 2 . . . . . . . . . . . . . . . . . . . . 1 . . . . . Researchers 2 | . . . . . 1 . . . . . . . . . . . . . . . . . . . . 1 . . . . . Extract 1 | . . . . . 1 . . . . . . . . . . . . . . . . . . . . . . . . . . Garrison Access 24 | . . . . . 9 . 7 . . . . . . . . . . . . 3 . . . . . . 3 2 . . . Broadcast 7 | . . . . . 3 . 1 . . . . . . . . . . . . 1 . . . . . . 1 1 . . . Restock 1 | . . . . . . . 1 . . . . . . . . . . . . . . . . . . . . . . . . Decoy 1 | . . . . . . . 1 . . . . . . . . . . . . . . . . . . . . . . . . Redirect 3 | . . . . . 1 . . . . . . . . . . . . . . 1 . . . . . . 1 . . . . Reprogram 3 | . . . . . 1 . 2 . . . . . . . . . . . . . . . . . . . . . . . . Intercept 2 | . . . . . 2 . . . . . . . . . . . . . . . . . . . . . . . . . . Watchers 7 | . . . . . 2 . 2 . . . . . . . . . . . . 1 . . . . . . 1 1 . . . Data Cores Recovered 6 | . . . . . . . 2 . . . . . 1 . . . . . . . . . . . . . . 1 1 . 1 Used 4 | . . . . . . . 2 . . . . . 1 . . . . . . . . . . . . . . 1 . . . Hacking Detections 28 | . 4 . 4 . 1 . . . . . . . 4 . 1 . . . . 5 . . . . 1 . 1 3 2 1 1 Full Trace Events . | . . . . . . . . . . . . . . . . . . . . . . . . . . . . . . . . Feedback Events . | . . . . . . . . . . . . . . . . . . . . . . . . . . . . . . . . Feedback Blocked . | . . . . . . . . . . . . . . . . . . . . . . . . . . . . . . . . Robot Schematics Acquired 19 | . . . . . 2 . 2 . . 3 . . 1 . . . . . . 1 . . . . . 1 . 4 4 1 . Robots Built 6 | . . . . . 2 . . . . . . . 2 . . . . . . 2 . . . . . . . . . . . Authchips 2 | . . . . . 1 . . . . . . . 1 . . . . . . . . . . . . . . . . . . Time 205 | . . . . . 28 . . . . . . . 84 . . . . . . 93 . . . . . . . . . . . Total Robot Build Rating 38 | . . . . . 12 . . . . . . . 12 . . . . . . 14 . . . . . . . . . . . Part Schematics Acquired 208 | . . . 1 6 60 2 21 . 1 19 4 . 5 . 3 . . 4 . 11 . . 2 . 12 11 9 24 11 2 . Parts Built 4 | . . . . . 3 . . . . . . . . . . . . . . 1 . . . . . . . . . . . Authchips 4 | . . . . . 3 . . . . . . . . . . . . . . 1 . . . . . . . . . . . Time 281 | . . . . . 114 . . . . . . . . . . . . . . 167 . . . . . . . . . . . Total Part Build Rating 21 | . . . . . 15 . . . . . . . . . . . . . . 6 . . . . . . . . . . . Parts Repaired 32 | . 7 . . . 11 . 6 . . . . . 3 . . . . . . 2 . . . . . 2 . . . 1 . Time 1305 | . 292 . . . 250 . 327 . . . . . 94 . . . . . . 246 . . . . . 51 . . . 45 . Parts Recycled . | . . . . . . . . . . . . . . . . . . . . . . . . . . . . . . . . Recycled Matter . | . . . . . . . . . . . . . . . . . . . . . . . . . . . . . . . . Retrieved Matter . | . . . . . . . . . . . . . . . . . . . . . . . . . . . . . . . . Retrieved Components 1 | . 1 . . . . . . . . . . . . . . . . . . . . . . . . . . . . . . Parts Scanalyzed 40 | . . . . . 21 . 3 . . . . . 3 . 1 . . . . 2 . . . . 5 2 . 3 . . . Part Schematics Acquired 42 | . . . . . 21 . 3 . . . . . 3 . 1 . . . . 2 . . . . 5 4 . 3 . . . Parts Damaged 2 | . . . . . 1 . . . . . . . . . . . . . . . . . . . 1 . . . . . . Bothacking | -11 -10 -10 -8 -8 -6 -6 -6 -6 -6 -6 -6 -5 -5 -5 -5 -5 -5 -5 -4 -4 -4 -4 -4 -3 -3 -3 -2 -2 -2 -1 -1 ------------ Run | Yrd Mat Sub Rec Scr Fac Was Fac Low Low Zio Dee Pro Fac Was Fac Upp Upp War Pro Fac Upp Upp Zhi Pro Res Qua Res Tes Sec Acc Com Used RIF Installer . | . . . . . . . . . . . . . . . . . . . . . . . . . . . . . . . . Robots Hacked 35 | . . . . . . . . . . . . 2 5 . 5 3 1 4 1 4 . . . 2 . . 1 . . 1 6 Non-combat . | . . . . . . . . . . . . . . . . . . . . . . . . . . . . . . . . Combat 35 | . . . . . . . . . . . . 2 5 . 5 3 1 4 1 4 . . . 2 . . 1 . . 1 6 Robot Hacks Applied 3 | . . . . . . . . . . . . . . . . . . . . . . . . . . . . . . . 3 parse_system 3 | . . . . . . . . . . . . . . . . . . . . . . . . . . . . . . . 3 Relay Couplers Released 5 | . . . . . . . 3 . . . . . . . . . . . . . . . . . . . . . . 2 . Machine Destruction 2 | . . . . . . . . . . . . . . . . . . . . . . . . . . . . . . 2 . Programmers 3 | . . . . . . . 3 . . . . . . . . . . . . . . . . . . . . . . . . Fabnet Peak Effective % 9 | . . . . . . . . . . . . 9 9 9 9 9 9 9 3 3 3 3 3 6 6 6 5 5 5 1 1 Autooverrided 32 | . . . . . . . . . . . . 2 5 . 5 3 1 4 1 4 . . . 2 . . 1 . . 1 3 Robots Rewired . | . . . . . . . . . . . . . . . . . . . . . . . . . . . . . . . . Allies Hacked 6 | . . . . . . . . . . . . . 1 . 3 . . . . . . . . . . 1 . . . 1 . Hacks Repelled . | . . . . . . . . . . . . . . . . . . . . . . . . . . . . . . . . Allies | -11 -10 -10 -8 -8 -6 -6 -6 -6 -6 -6 -6 -5 -5 -5 -5 -5 -5 -5 -4 -4 -4 -4 -4 -3 -3 -3 -2 -2 -2 -1 -1 -------- Run | Yrd Mat Sub Rec Scr Fac Was Fac Low Low Zio Dee Pro Fac Was Fac Upp Upp War Pro Fac Upp Upp Zhi Pro Res Qua Res Tes Sec Acc Com Total Allies 236 | . . . . . 6 19 5 . . . 10 2 8 21 8 3 1 4 1 15 . . . 2 4 2 1 . . 22 102 Largest Group 26 | . . . . . 4 20 20 1 . . 7 2 4 23 24 2 . 1 1 6 . . . 2 3 1 1 . . 9 26 Highest-Rated Group 863 | . . . . . 113 734 756 50 . . 332 62 178 830 863 49 . 47 54 251 . . . 94 65 45 58 . . 126 850 Highest-Rated Ally 234 | . . . . . 54 50 50 50 . . 50 33 54 54 137 49 . 47 54 56 . . . 47 45 45 58 . . 58 234 Total Orders 1 | . . . . . . . . . . . . . . . . . . . . . 1 . . . . . . . . . . EXPLORE 1 | . . . . . . . . . . . . . . . . . . . . . 1 . . . . . . . . . . Ally Attacks 996 | . . . . . 32 69 151 1 . . 237 3 16 . 159 6 1 11 2 55 . . . 6 . . 3 . . 78 166 Total Damage 26732 | . . . . . 477 2537 6971 107 . . 3808 66 285 . 3686 122 . 352 193 1815 . . . 212 . . 116 . . 1180 4805 Kills 141 | . . . . . 3 3 49 . . . 15 . 2 . 28 1 . 3 1 8 . . . 1 . . . . . 7 20 Allies Corrupted 12 | . . . . . . . 1 . . . . . . . 1 . . . . 2 . . . . . 1 . . . . 7 Allies Melted 4 | . . . . . 1 . . . . . . . 1 . 1 . . . . 1 . . . . . . . . . . . Intel | -11 -10 -10 -8 -8 -6 -6 -6 -6 -6 -6 -6 -5 -5 -5 -5 -5 -5 -5 -4 -4 -4 -4 -4 -3 -3 -3 -2 -2 -2 -1 -1 ------- Run | Yrd Mat Sub Rec Scr Fac Was Fac Low Low Zio Dee Pro Fac Was Fac Upp Upp War Pro Fac Upp Upp Zhi Pro Res Qua Res Tes Sec Acc Com Robot Analysis Total 19 | . 1 . . . 3 . 1 . . . . . 1 . . . . . . 2 . . 4 . . 3 . 3 1 . . Derelict Logs Recovered 25 | . . 3 . 5 . . . 2 1 2 . 2 . . . 1 1 . 2 . 3 3 . . . . . . . . . Drone Launches 2 | . . . . . . . . . . . . . . . . . . . . . 2 . . . . . . . . . . Drone Recoveries 2 | . . . . . . . . . . . . . . . . . . . . . 2 . . . . . . . . . . Exploration | -11 -10 -10 -8 -8 -6 -6 -6 -6 -6 -6 -6 -5 -5 -5 -5 -5 -5 -5 -4 -4 -4 -4 -4 -3 -3 -3 -2 -2 -2 -1 -1 ------------- Run | Yrd Mat Sub Rec Scr Fac Was Fac Low Low Zio Dee Pro Fac Was Fac Upp Upp War Pro Fac Upp Upp Zhi Pro Res Qua Res Tes Sec Acc Com Turns Passed 35194 | 4709 1322 3796 1539 1979 2279 173 1405 494 397 484 2447 221 860 135 413 185 232 631 232 1519 1596 1473 293 1224 930 717 555 279 490 553 1632 Spaces Moved 34967 | 829 760 3534 867 2346 2012 250 1656 718 700 929 1538 669 1366 241 850 579 424 802 590 2266 846 792 172 638 1436 1158 1404 1176 1216 413 1790 Core 9 | 8 . 1 . . . . . . . . . . . . . . . . . . . . . . . . . . . . . Treads . | . . . . . . . . . . . . . . . . . . . . . . . . . . . . . . . . Legs 6355 | 289 . 66 . . . . . . . . 169 . . . . . . . . 145 846 792 172 638 98 . . . 937 413 1790 Wheels 904 | . . 708 . 10 . . . . . . 186 . . . . . . . . . . . . . . . . . . . . Hover 15978 | 532 760 2759 867 2322 2012 250 1656 718 700 929 1181 669 623 . . . . . . . . . . . . . . . . . . Flight 11701 | . . . . . . . . . . . 2 . 743 241 850 579 424 796 590 2121 . . . . 1338 1158 1404 1176 279 . . Fastest Speed 10 | 50 76 77 77 70 50 50 50 50 50 50 24 24 13 13 27 27 27 27 32 22 180 150 150 180 16 20 15 10 10 30 30 Average Speed 59 | 99 90 97 77 76 68 50 50 50 50 50 65 24 19 13 27 27 27 27 32 35 180 179 165 180 31 20 17 11 25 50 39 Slowest Speed 637 | 200 156 637 77 80 147 50 50 50 50 50 180 24 96 27 27 27 27 95 32 180 180 180 180 180 180 85 20 15 30 90 90 Overloaded Moves . | . . . . . . . . . . . . . . . . . . . . . . . . . . . . . . . . Propulsion Burnouts . | . . . . . . . . . . . . . . . . . . . . . . . . . . . . . . . . Robots Hopped 81 | . . . . . . . . . . . . . 7 . 6 1 1 . 2 9 . . . . 10 2 24 19 . . . Cave-ins Triggered 1 | . . . . . . . . . . . . . . . . . . . . . . . . . . . . . . . 1 Teleports 1 | . . . . . . . . . . . . . . . . . . . . . . . . . . . . . 1 . . Spacefolds 9 | . . . . 6 . . . . . . . . . . . . . 3 . . . . . . . . . . . . . Exploration Rate (%) 74 | 118 97 97 99 95 42 88 56 97 94 89 83 80 36 88 40 71 54 93 73 49 93 93 62 96 41 91 40 93 76 14 46 Regions Visited 31 Branch Regions 20 Pre-discovered Areas 14 | . 2 . 3 . . . . . . 2 . 1 . . . . . . . 2 1 1 . . 2 . . . . . . Known Exits Taken 18 | . . 1 . . . . 1 . . . . 1 . . 1 . 1 1 1 1 1 1 1 1 1 1 1 1 1 1 . Unknown Exits Taken 9 | 1 1 . 1 1 . . . 1 1 1 1 . . . . 1 . . . . . . . . . . . . . . . Scrap Searched 47 | . . 10 . 4 . . . 4 4 4 . 4 . . . 2 2 . 2 . 3 3 . 5 . . . . . . . Spaces Dug 72 | . . 7 . . 5 . 4 6 . . . . . . . . . . . 4 10 . . 8 12 5 4 6 1 . . Terrain Destroyed 1382 | . . 48 . . 85 6 76 33 27 2 4 . . . . 3 . 1 . 90 62 73 . 121 104 13 4 6 1 190 433 Melee 16 | . . . . . . . . . . . . . . . . . . . . 4 . . . . . 1 4 6 1 . . Projectile 1096 | . . 16 . . 28 6 23 33 27 2 4 . . . . 3 . 1 . 29 62 73 . 121 104 7 . . . 186 371 AOE 270 | . . 32 . . 57 . 53 . . . . . . . . . . . . 57 . . . . . 5 . . . 4 62 Terrain Rammed . | . . . . . . . . . . . . . . . . . . . . . . . . . . . . . . . . Walls Destroyed . | . . . . . . . . . . . . . . . . . . . . . . . . . . . . . . . . Machines Disabled . | . . . . . . . . . . . . . . . . . . . . . . . . . . . . . . . . Actions | -11 -10 -10 -8 -8 -6 -6 -6 -6 -6 -6 -6 -5 -5 -5 -5 -5 -5 -5 -4 -4 -4 -4 -4 -3 -3 -3 -2 -2 -2 -1 -1 --------- Run | Yrd Mat Sub Rec Scr Fac Was Fac Low Low Zio Dee Pro Fac Was Fac Upp Upp War Pro Fac Upp Upp Zhi Pro Res Qua Res Tes Sec Acc Com Total 47678 | 4660 1308 3802 1741 2543 2768 285 2177 816 727 945 2921 702 1899 343 984 598 533 1167 616 2827 909 815 183 674 1842 1568 1603 1281 1319 597 2525 Wait 10319 | 3771 472 27 835 74 476 28 472 70 8 14 1149 14 446 92 84 10 102 320 10 387 52 7 4 17 295 288 129 26 5 56 579 Move 34770 | 828 759 3533 866 2337 2012 249 1655 717 699 928 1537 668 1353 240 837 576 421 798 585 2247 845 791 171 637 1415 1153 1361 1137 1215 412 1788 Hop 74 | . . . . . . . . . . . . . 6 . 6 1 1 . 2 9 . . . . 10 2 18 19 . . . Pick Up 308 | 7 10 56 20 52 52 1 2 1 . 1 40 . 2 2 1 . . 1 2 13 . . 4 . 8 9 3 4 17 . . Fast Attach 218 | 8 7 16 1 8 30 . 10 1 2 . 24 1 5 3 5 1 . 6 . 20 2 . . . 10 25 3 2 15 9 4 Attach 120 | 4 2 9 1 6 23 . . 2 . . 21 . 7 1 1 1 2 . 1 8 . . 1 . 7 4 3 . 3 11 2 Detach 72 | 1 . 8 1 6 10 . . 1 . . 7 . . 1 . 1 1 1 . 10 . . . . 2 6 . . 4 8 4 Swap 43 | . 3 2 . 1 1 . 1 . . 1 1 . 1 . 1 . . 1 2 4 . 1 . . 5 . 5 11 1 . 1 Drop 411 | . 7 53 13 59 54 1 9 3 . . 76 1 5 4 6 1 . 4 1 15 4 3 3 . 14 31 7 11 19 5 2 Fire 943 | 41 47 98 4 . 110 6 27 21 18 1 53 10 18 . 43 6 5 36 12 35 6 13 . 20 70 27 . . . 92 124 Melee 286 | . . . . . . . . . . . 13 8 20 . . 1 1 . 1 79 . . . . . 20 59 20 40 4 20 Ram 2 | . 1 . . . . . 1 . . . . . . . . . . . . . . . . . . . . . . . . Kick . | . . . . . . . . . . . . . . . . . . . . . . . . . . . . . . . . Crush . | . . . . . . . . . . . . . . . . . . . . . . . . . . . . . . . . Escape Stasis 103 | . . . . . . . . . . . . . 36 . . . . . . . . . . . . . 15 51 . . 1 Rewire . | . . . . . . . . . . . . . . . . . . . . . . . . . . . . . . . . Trap . | . . . . . . . . . . . . . . . . . . . . . . . . . . . . . . . . Miscellaneous 9 | . . . . . . . . . . . . . . . . . . . . . . . . . 6 3 . . . . . Route ------- -11/Scrapyard -10/Materials (discovered 5 exits: *Mat x3 / *Min / *Sub) -10/Subcaves (discovered 3 exits: *Mat x2 / *Rec) -8/Recycling (discovered 2 exits: *Fac / *Scr) -8/Scraptown (discovered 2 exits: *Fac x2) -6/Factory (discovered 5 exits: *Fac / Low x2 / Ext x2) -6/Waste -6/Factory (discovered 8 exits: *Fac x4 / *Low x2 / Ext x2) -6/Lower Caves -6/Lower Caves (discovered 2 exits: *Fac / *Zio) -6/Zion (discovered 2 exits: [*Dee] / [*Pro]) -6/Deep Caves -5/Proximity Caves -5/Factory (discovered 6 exits: *Fac x4 / Upp x2) -5/Waste -5/Factory (discovered 2 exits: *Fac / *Upp) -5/Upper Caves -5/Upper Caves (discovered 2 exits: Fac / *War) -5/Warlord -4/Proximity Caves -4/Factory (discovered 6 exits: *Res x4 / *Upp x2) -4/Upper Caves -4/Upper Caves (discovered 2 exits: *Res / *Zhi) -4/Zhirov -3/Proximity Caves -3/Research (discovered 6 exits: *Res x3 / Arm / *Qua x2) -3/Quarantine -2/Research (discovered 5 exits: *Acc x3 / *Tes x2) -2/Testing (discovered 2 exits: *Acc / *Sec) -2/Section 7 -1/Access (discovered 2 exits: Sur / *Com) -1/Command (discovered 2 exits: *Sur x2) Tau Ceti IV Orbit History --------- Turn | Location | Event 26 | -11/Scrapyard | Discovered new exit (range 15) 3879 | -11/Scrapyard | Assembled infested the area 3968 | -11/Scrapyard | Core integrity fell below 50% 3978 | -11/Scrapyard | Core integrity fell below 20% 4153 | -11/Scrapyard | Lost 3 parts (1p2w) 4710 | -11/Scrapyard | Entered Materials 4711 | -10/Materials | Build established: Mutant 4773 | -10/Materials | Repaired Shock Absorption System? 4837 | -10/Materials | Repaired Cmb. Airjet 4863 | -10/Materials | Repaired Seismic Detector 4923 | -10/Materials | Repaired Cmb. Airjet 4999 | -10/Materials | Repaired Broken Cmb. Airjet 5025 | -10/Materials | Repaired Assault Rifle 5051 | -10/Materials | Repaired Seismic Detector 5123 | -10/Materials | Identified exit to Mines 5123 | -10/Materials | Identified exit to Materials 5548 | -10/Materials | Build established: Scavenger-Mutant 5966 | -10/Materials | Build established: Wizard-Mutant 6012 | -10/Materials | Discovered new exit (range 4) 6032 | -10/Materials | Entered Subcaves 6036 | -10/Subcaves | Learned 4 Materials zone layouts 6105 | -10/Subcaves | Learned location of 2 exits from Materials 6143 | -10/Subcaves | A swath of the cavern ceiling suddenly collapsed 6464 | -10/Subcaves | Discovered new exit (range 14) 6496 | -10/Subcaves | Learned Materials terminal intel 6539 | -10/Subcaves | Visited 4L-MR0's lab 6551 | -10/Subcaves | Found Powered Cannon 6616 | -10/Subcaves | Visited Clippyterm 6618 | -10/Subcaves | Learned Factory fabricator intel 6645 | -10/Subcaves | Shifting Twisted Machinery released Barrage Gun 6697 | -10/Subcaves | Found SUBCON Basin 6726 | -10/Subcaves | Shifting Twisted Machinery released Humpback 6810 | -10/Subcaves | Discovered new exit (range 10) 7260 | -10/Subcaves | Discovered new exit (range 15) 7558 | -10/Subcaves | Shifting Twisted Machinery released Battle Rifle 7795 | -10/Subcaves | A swath of the cavern ceiling suddenly collapsed 7881 | -10/Subcaves | Build established: Hauler-Mutant 8685 | -10/Subcaves | Shifting Twisted Machinery released Battle Rifle 8747 | -10/Subcaves | Shifting Twisted Machinery released Battle Cannon 9184 | -10/Subcaves | Ambushed by Subdweller buried in earth 9408 | -10/Subcaves | Ambushed by Subdweller buried in earth 9410 | -10/Subcaves | Ambushed by Subdweller buried in earth 9712 | -10/Subcaves | Identified exit to Materials 9827 | -10/Subcaves | Identified exit to Recycling 9828 | -10/Subcaves | Entered Recycling 10198 | -8/Recycling | Discovered new exit (range 15) 10315 | -8/Recycling | Scanned before Scraplab entrance 10323 | -8/Recycling | Discovered new exit (range 11) 10326 | -8/Recycling | Entered Scraplab 10702 | -8/Recycling | Found SUBCON Basin 11367 | -8/Recycling | Entered Scraptown 11576 | -8/Scraptown | Discovered new exit (range 5) 11815 | -8/Scraptown | Scanned Subdweller tech in exchange for log data 11820 | -8/Scraptown | Learned Research security intel 11820 | -8/Scraptown | Learned Factory stockpile data 11821 | -8/Scraptown | Learned Factory terminal intel 11822 | -8/Scraptown | Learned location of 1 exit from Research 11823 | -8/Scraptown | Learned Research stockpile data 11983 | -8/Scraptown | Visited Cyclists 11999 | -8/Scraptown | Visited Shadow of the Wyrm 12016 | -8/Scraptown | Visited SPCMW 12040 | -8/Scraptown | Visited Cave Peace 12088 | -8/Scraptown | Visited Awakened 12110 | -8/Scraptown | Visited Science Testing Area 12127 | -8/Scraptown | Visited UFD Registry 12138 | -8/Scraptown | Visited Observation Area 12252 | -8/Scraptown | Heard Great Nut preacher, LISTEN AND RECITE! 12330 | -8/Scraptown | Registered with UFD as "Thermoframe" 12367 | -8/Scraptown | Entered Cyclist Reading Room 12418 | -8/Scraptown | System corruption cleaned by C-Scrubber 12474 | -8/Scraptown | Visited Scrapoid Research Area 12497 | -8/Scraptown | Visited Scrap Suit Storage 12524 | -8/Scraptown | Visited Curators Association 12558 | -8/Scraptown | Delivered Scrap Shield to a Scientist 12649 | -8/Scraptown | Visited DA-N13 Charitable Foundation 12658 | -8/Scraptown | Found DCF Scrap (30 items) 12671 | -8/Scraptown | Visited Infowarlord's Domain 12688 | -8/Scraptown | Visited Scrapoid Pod Storage 12698 | -8/Scraptown | Visited LU-1G1's Boring Crew 12728 | -8/Scraptown | Visited Chapter 10 12754 | -8/Scraptown | Visited Abandonware Association 12764 | -8/Scraptown | Learned abandonware demo "KABOOM.EXE" 12764 | -8/Scraptown | Learned abandonware demo "MELTYB.EXE" 12783 | -8/Scraptown | Visited Science Guys 12916 | -8/Scraptown | Found Scrap Suit 12945 | -8/Scraptown | Found Exp. Terrain Scan Processor 12968 | -8/Scraptown | Found Surveybot 24 Chip 13079 | -8/Scraptown | Found Prototype Piercing Weapon 13080 | -8/Scraptown | Identified Thermal Lance 13179 | -8/Scraptown | Found Scrapoid Pod 13185 | -8/Scraptown | Found Scrapoid Pod 13213 | -8/Scraptown | Discovered new exit (range 5) 13346 | -8/Scraptown | Entered Factory 13346 | -6/Factory | Evolved 8 slots: Power x1, Propulsion x2, Utility x5 13348 | -6/Factory | Loaded intel: 28 terminal locations 13349 | -6/Factory | Loaded intel: 6 fabricator locations 13358 | -6/Factory | Tech Extrapolator generated special schematic: Machine Rigger 13920 | -6/Factory | Identified exit to Lower Caves 13920 | -6/Factory | Identified exit to Extension 13937 | -6/Factory | Noticed a derelict Sapper rigging charges 13949 | -6/Factory | Spotted B-75 Beast 13961 | -6/Factory | Destroyed B-75 Beast 13987 | -6/Factory | Found Prototype Launcher 13987 | -6/Factory | Identified Rocket Array 13988 | -6/Factory | Lost 3 parts (1n2u) 14064 | -6/Factory | Discovered new exit (range 16) 14228 | -6/Factory | Fabricated P-70 Sage (x2) 14327 | -6/Factory | Tech Extrapolator generated special schematic: Energy Deflector 14492 | -6/Factory | Cargo convoy interrupted 14493 | -6/Factory | Build established: Wizard-Mutant 14571 | -6/Factory | Found Prototype Launcher 14571 | -6/Factory | Identified Hellfire Missile Launcher 14588 | -6/Factory | Found PL-3XN's Ring of Power 14743 | -6/Factory | Fabricated Biomechanical Wings (x1) 14746 | -6/Factory | First assault squad dispatched 14783 | -6/Factory | Fabricated Biomechanical Wings (x1) 14823 | -6/Factory | Fabricated Biomechanical Wings (x1) 15048 | -6/Factory | Repaired Broken Field Laser 15073 | -6/Factory | Repaired Cmb. Airjet 15089 | -6/Factory | Repaired Multitool 15111 | -6/Factory | Repaired Mic. Nuclear Core 15125 | -6/Factory | Repaired Seismic Detector 15150 | -6/Factory | Repaired Imp. Gravmag System 15177 | -6/Factory | Repaired Imp. Gravmag System 15199 | -6/Factory | Repaired Mic. Nuclear Core 15243 | -6/Factory | Repaired Cld. Plasma Rifle 15262 | -6/Factory | Repaired Imp. Sensor Array 15369 | -6/Factory | Repaired Med. Storage Unit 15567 | -6/Factory | Garrison activated, responded to threat 15625 | -6/Factory | Sucked down chute 15625 | -6/Factory | Entered Waste 15629 | -6/Waste | Spotted C-40 Crusher 15633 | -6/Waste | Destroyed C-40 Crusher 15640 | -6/Waste | Warlord forces began an assault 15654 | -6/Waste | Spotted C-40 Crusher 15655 | -6/Waste | Destroyed C-40 Crusher 15658 | -6/Waste | Spotted C-40 Crusher 15661 | -6/Waste | Spotted C-40 Crusher 15662 | -6/Waste | Destroyed C-40 Crusher 15666 | -6/Waste | Destroyed C-40 Crusher 15669 | -6/Waste | Spotted C-40 Crusher 15672 | -6/Waste | Spotted C-40 Crusher 15675 | -6/Waste | Allies destroyed C-40 Crusher 15679 | -6/Waste | Allies destroyed C-40 Crusher 15725 | -6/Waste | 2 allies followed down the chute 15727 | -6/Waste | Discovered new exit (range 18) 15740 | -6/Waste | 1 allies followed down the chute 15798 | -6/Waste | Entered Factory 15798 | -6/Factory | Accompanied by 20 allies 15817 | -6/Factory | Garrison activated, responded to threat 16142 | -6/Factory | Lost 4 allies 16263 | -6/Factory | Tech Extrapolator generated special schematic: Active Sensor Spoofer 16298 | -6/Factory | Lost 7 allies 16331 | -6/Factory | Discovered new exit (range 15) 16349 | -6/Factory | Spotted B-75 Beast 16360 | -6/Factory | Destroyed B-75 Beast 16366 | -6/Factory | Discovered new exit (range 19) 16574 | -6/Factory | Repaired Cmb. Airjet 16612 | -6/Factory | Repaired Field Laser 16663 | -6/Factory | Repaired Fission Core 16713 | -6/Factory | Repaired Imp. Gravmag System 16763 | -6/Factory | Repaired Imp. Gravmag System 16848 | -6/Factory | First assault squad dispatched 16852 | -6/Factory | Repaired Cld. Plasma Rifle 17060 | -6/Factory | Cargo convoy interrupted 17106 | -6/Factory | Identified exit to Factory 17203 | -6/Factory | Entered Lower Caves 17203 | -6/Lower Caves | Accompanied by 1 ally 17205 | -6/Lower Caves | UFD Scientist delivered a prototype 17208 | -6/Lower Caves | Found Prototype Protection 17312 | -6/Lower Caves | Spotted B-75 Beast 17317 | -6/Lower Caves | Destroyed B-75 Beast 17341 | -6/Lower Caves | Encountered a Warlord checkpoint 17412 | -6/Lower Caves | Learned Factory emergency access door positions 17466 | -6/Lower Caves | Identified Enh. Scrap Shield 17568 | -6/Lower Caves | Learned location of 1 exit from Factory 17632 | -6/Lower Caves | Discovered new exit (range 17) 17697 | -6/Lower Caves | Entered another Lower Caves area 17734 | -6/Lower Caves | Discovered exit to Factory (range 12) 17818 | -6/Lower Caves | Spotted B-75 Beast 17821 | -6/Lower Caves | Destroyed B-75 Beast 17852 | -6/Lower Caves | Attracted the attention of an 0b10 base 17894 | -6/Lower Caves | Destroyed 7 combat bots 17900 | -6/Lower Caves | Learned location of 2 exits from Factory 17908 | -6/Lower Caves | Attacked by a delusional Derelict stockpiling parts 17987 | -6/Lower Caves | Discovered new exit (range 14) 18094 | -6/Lower Caves | Entered Zion 18141 | -6/Zion | System corruption cleaned by Quarantine Array 18151 | -6/Zion | Discovered new exit (range 19) 18155 | -6/Zion | Given A8's code to call for help 18199 | -6/Zion | Learned location of Quarantine (-3) 18256 | -6/Zion | Acquired unknown access codes intercepted by a Zionite 18274 | -6/Zion | Found CR-A16's Pointy Stick 18379 | -6/Zion | Discovered new exit (range 11) 18391 | -6/Zion | Learned Factory garrison access intel 18465 | -6/Zion | Turned away by Imprinter 18517 | -6/Zion | Opened final containment barrier to the Deep Caves 18525 | -6/Zion | Saw the warning signs outside the Deep Caves entrance 18578 | -6/Zion | Entered Deep Caves 18606 | -6/Deep Caves | Tech Extrapolator generated special schematic: Heat Bomb Trap 18617 | -6/Deep Caves | Build established: Hauler-Mutant 18840 | -6/Deep Caves | Scrapoid Pod released 06D07-D (x5) 18899 | -6/Deep Caves | Z-Facility disabled 18925 | -6/Deep Caves | Attacked by Z-Imprinter 18932 | -6/Deep Caves | Destroyed Z-Imprinter 19074 | -6/Deep Caves | Tech Extrapolator generated special schematic: Hyp. Alpha Cannon 19243 | -6/Deep Caves | Found Zio. Weapon Casing 19290 | -6/Deep Caves | Scrapoid Pod released 06D12-D (x5) 19466 | -6/Deep Caves | Spotted AG-47994 19506 | -6/Deep Caves | Core integrity fell below 50% 19538 | -6/Deep Caves | Allies destroyed AG-47994 19539 | -6/Deep Caves | Lost 4 allies 19550 | -6/Deep Caves | Found GOLEM Unit 19562 | -6/Deep Caves | Lost 6 parts (1p4n1u) 19590 | -6/Deep Caves | Triggered Deep Caves wall 19590 | -6/Deep Caves | Spotted AS-78660 19590 | -6/Deep Caves | Spotted AS-76853 19590 | -6/Deep Caves | Exposed GOLEM chamber 19596 | -6/Deep Caves | Spotted AG-42235 19598 | -6/Deep Caves | Destroyed AS-78660 19612 | -6/Deep Caves | Destroyed AS-76853 19624 | -6/Deep Caves | Destroyed AG-42235 19627 | -6/Deep Caves | Found GOLEM Unit 19633 | -6/Deep Caves | Found GOLEM Unit 19694 | -6/Deep Caves | Destroyed 44 combat bots 19999 | -6/Deep Caves | Build established: Hacker-Golem 20209 | -6/Deep Caves | Attached Sub. Optics, gained temporary slots: Utility x5 20309 | -6/Deep Caves | Attached Sub. Optics, gained temporary slots: Utility x9 20746 | -6/Deep Caves | Found Zio. Metafield Generator 20761 | -6/Deep Caves | Found Zio. Weapon Casing 20843 | -6/Deep Caves | Discovered new exit (range 17) 20858 | -6/Deep Caves | Found GOLEM Unit 20868 | -6/Deep Caves | Found Prototype Slashing Weapon 20868 | -6/Deep Caves | Identified Longsword +1 20941 | -6/Deep Caves | Found Scrap Suit 20942 | -6/Deep Caves | Found Scrap Suit 21025 | -6/Deep Caves | Entered Proximity Caves 21025 | -5/Proximity Caves | Accompanied by 1 ally 21109 | -5/Proximity Caves | Learned location of Armory (-3) 21119 | -5/Proximity Caves | Destroyed 7 combat bots 21204 | -5/Proximity Caves | Spotted B-75 Beast 21208 | -5/Proximity Caves | Core integrity fell below 20% 21224 | -5/Proximity Caves | Revealed the true nature of CR-A16's Pointy Stick 21227 | -5/Proximity Caves | Destroyed B-75 Beast 21246 | -5/Proximity Caves | Entered Factory 21246 | -5/Factory | Evolved 2 slots: Propulsion x1, Utility x1 21247 | -5/Factory | Identified exit to Factory 21247 | -5/Factory | Identified exit to Upper Caves 21249 | -5/Factory | Loaded intel: 3 garrison access locations 21253 | -5/Factory | Build established: Hauler-Sprinter 21480 | -5/Factory | Repaired Cld. Plasma Rifle? 21532 | -5/Factory | Destroyed 8 combat bots 21617 | -5/Factory | Repaired Triangulator 21642 | -5/Factory | Repaired Adv. Terrain Scanner 21806 | -5/Factory | Learned Quarantine trap positions 21885 | -5/Factory | Learned location of 1 exit from Armory 21956 | -5/Factory | Learned 12 Research zone layouts 21974 | -5/Factory | Cargo convoy interrupted 22015 | -5/Factory | Learned Extension emergency access door positions 22020 | -5/Factory | Local machine network offline 22026 | -5/Factory | Fabricated P-70 Sage (x2) 22083 | -5/Factory | Sage 6a assimilated hostile G-50 Soldier 22106 | -5/Factory | Sucked down chute 22106 | -5/Factory | Entered Waste 22106 | -5/Waste | Met up with 1 ally sucked down the chute earlier 22107 | -5/Waste | Joined by Warlord forces that had cleared the area 22136 | -5/Waste | 3 allies followed down the chute 22145 | -5/Waste | Discovered new exit (range 15) 22241 | -5/Waste | Entered Factory 22241 | -5/Factory | Accompanied by 23 allies 22331 | -5/Factory | Lost 5 allies 22335 | -5/Factory | Local machine network offline 22450 | -5/Factory | Spotted B-75 Beast 22466 | -5/Factory | Destroyed B-75 Beast 22501 | -5/Factory | Destroyed 9 combat bots 22525 | -5/Factory | Discovered exit to Factory (range 16) 22539 | -5/Factory | Lost 6 allies 22541 | -5/Factory | First assault squad dispatched 22586 | -5/Factory | Discovered exit to Upper Caves (range 9) 22654 | -5/Factory | Entered Upper Caves 22685 | -5/Upper Caves | Learned Factory non-interactive machine intel 22687 | -5/Upper Caves | Spotted B-75 Beast 22692 | -5/Upper Caves | Destroyed B-75 Beast 22775 | -5/Upper Caves | Build established: Sprinter 22782 | -5/Upper Caves | Discovered new exit (range 12) 22839 | -5/Upper Caves | Entered another Upper Caves area 22881 | -5/Upper Caves | Spotted B-75 Beast 22920 | -5/Upper Caves | Destroyed B-75 Beast 23035 | -5/Upper Caves | Discovered new exit (range 14) 23041 | -5/Upper Caves | Identified exit to Warlord 23071 | -5/Upper Caves | Entered Warlord 23137 | -5/Warlord | Visited the Vortex Lab 23140 | -5/Warlord | Found Prototype Energy Gun 23140 | -5/Warlord | Identified Vortex Rifle 23159 | -5/Warlord | Warlord's base attacked by MAIN.C 23162 | -5/Warlord | Rebuked by Warlord 23167 | -5/Warlord | Found Prototype Device 23167 | -5/Warlord | Identified Thermal Barrier 23509 | -5/Warlord | Warlord forces counterattacked 23534 | -5/Warlord | Opened side exit 23637 | -5/Warlord | Spotted Executioner 23637 | -5/Warlord | Spotted Striker 23646 | -5/Warlord | Destroyed Striker 23665 | -5/Warlord | Discovered new exit (range 10) 23667 | -5/Warlord | Spotted Striker 23679 | -5/Warlord | Destroyed Striker 23696 | -5/Warlord | Lost 5 allies 23697 | -5/Warlord | Identified exit to Proximity Caves 23702 | -5/Warlord | Entered Proximity Caves 23706 | -4/Proximity Caves | Core integrity fell below 50% 23727 | -4/Proximity Caves | Destroyed 17 combat bots 23743 | -4/Proximity Caves | Spotted B-86 Titan 23770 | -4/Proximity Caves | Destroyed B-86 Titan 23790 | -4/Proximity Caves | Attracted the attention of an 0b10 checkpoint 23812 | -4/Proximity Caves | Destroyed 8 combat bots 23831 | -4/Proximity Caves | Discovered exit to Factory (range 9) 23850 | -4/Proximity Caves | Learned Research terminal intel 23869 | -4/Proximity Caves | Encountered an infested base 23934 | -4/Proximity Caves | Entered Factory 23934 | -4/Factory | Evolved 2 slots: Propulsion x1, Utility x1 23935 | -4/Factory | Loaded intel: 291 non-interactive machine locations 23976 | -4/Factory | Identified exit to Upper Caves 23976 | -4/Factory | Identified exit to Research 24019 | -4/Factory | Scrapoids reinforcements arrived? 24049 | -4/Factory | Fabricated Exp. Cesium-ion Thruster (x1) 24264 | -4/Factory | Spotted B-86 Titan 24270 | -4/Factory | Destroyed B-86 Titan 24276 | -4/Factory | System corruption reached 10% 24296 | -4/Factory | Build established: Wizard-Sprinter 24338 | -4/Factory | Fabricated H-77 Assassin (x2) 24494 | -4/Factory | Loaded intel: 4 garrison access locations 24546 | -4/Factory | Repaired Cld. Plasma Rifle 24551 | -4/Factory | Lost 6 parts (3p1n2u) 24611 | -4/Factory | Repaired Lgt. Antimatter Reactor 24727 | -4/Factory | First assault squad dispatched 24760 | -4/Factory | Learned Armory trap positions 24838 | -4/Factory | Core integrity fell below 50% 24862 | -4/Factory | Learned 2 Proximity Caves zone layouts 24868 | -4/Factory | Lost 3 parts (1p2n) 24882 | -4/Factory | Destroyed 10 combat bots 24927 | -4/Factory | Learned 12 Research zone layouts 24941 | -4/Factory | Build established: Hacker-Sprinter 24971 | -4/Factory | Found Quantum Capacitor 25294 | -4/Factory | Cargo convoy interrupted 25329 | -4/Factory | Found Exp. Signal Interpreter 25433 | -4/Factory | Build established: Hacker-Golem 25453 | -4/Factory | Entered Upper Caves 25454 | -4/Upper Caves | Identified exit to Upper Caves 25870 | -4/Upper Caves | Attracted the attention of an 0b10 checkpoint 26558 | -4/Upper Caves | Learned Research trap positions 27049 | -4/Upper Caves | Entered another Upper Caves area 27082 | -4/Upper Caves | Encountered a Warlord checkpoint 27111 | -4/Upper Caves | Discovered exit to Research (range 5) 27542 | -4/Upper Caves | Spotted B-86 Titan 27558 | -4/Upper Caves | Destroyed B-86 Titan 27782 | -4/Upper Caves | Discovered new exit (range 14) 27826 | -4/Upper Caves | Identified exit to Zhirov 28155 | -4/Upper Caves | Build established: Hacker-Mutant 28522 | -4/Upper Caves | Entered Zhirov 28522 | -4/Zhirov | Discovered new exit (range 3) 28689 | -4/Zhirov | Found Alien Artifact 28711 | -4/Zhirov | Found Alien Artifact 28813 | -4/Zhirov | Identified exit to Proximity Caves 28815 | -4/Zhirov | Entered Proximity Caves 29047 | -3/Proximity Caves | Spotted B-86 Titan 29054 | -3/Proximity Caves | Destroyed B-86 Titan 29309 | -3/Proximity Caves | Destroyed 7 combat bots 29547 | -3/Proximity Caves | Attracted the attention of an 0b10 checkpoint 30039 | -3/Proximity Caves | Entered Research 30039 | -3/Research | Evolved 2 slots: Utility x2 30040 | -3/Research | Discovered new exit (range 63) 30040 | -3/Research | Identified exit to Armory 30040 | -3/Research | Identified exit to Quarantine 30041 | -3/Research | Identified exit to Research 30043 | -3/Research | Loaded intel: 94 trap records 30046 | -3/Research | Loaded intel: 25 terminal locations 30070 | -3/Research | Spotted B-86 Titan 30075 | -3/Research | Destroyed B-86 Titan 30338 | -3/Research | Spotted B-86 Titan 30345 | -3/Research | Destroyed B-86 Titan 30403 | -3/Research | Destroyed 9 combat bots 30528 | -3/Research | Destroyed 7 combat bots 30585 | -3/Research | Build established: Wizard-Sprinter 30670 | -3/Research | Identified Integrated Dissipator 30670 | -3/Research | Identified Transdimensional Reconstructor 30681 | -3/Research | Installed Integrated Dissipator, increased core energy generation (+20) 30685 | -3/Research | Discovered exit to Research (range 11) 30689 | -3/Research | Tech Extrapolator generated special schematic: Telecube 30714 | -3/Research | Learned Quarantine trap positions 30822 | -3/Research | Learned 4 Quarantine zone layouts 30885 | -3/Research | Learned Research trap positions 30902 | -3/Research | Learned Research security intel 30923 | -3/Research | Learned 4 Research zone layouts 30949 | -3/Research | Learned location of 2 exits from Research 30951 | -3/Research | Build established: Hacker-Sprinter 30969 | -3/Research | Entered Quarantine 30971 | -3/Quarantine | Loaded intel: 21 trap records 31052 | -3/Quarantine | Cryocooling Duct disabled 31067 | -3/Quarantine | Ambient heat levels rising (+20) 31067 | -3/Quarantine | Non-combat units ordered to evacuate 31182 | -3/Quarantine | Repaired Field Propulsion Drive 31215 | -3/Quarantine | Repaired Cld. Proton Cannon 31225 | -3/Quarantine | Found Alien Energy Cannon 31225 | -3/Quarantine | Identified Core Cannon 31270 | -3/Quarantine | Build established: Wizard-Sprinter 31353 | -3/Quarantine | Found Alien Artifact 31353 | -3/Quarantine | Identified Phase Armor 31387 | -3/Quarantine | Found Alien Artifact 31395 | -3/Quarantine | Identified Subatomic Replicator 31405 | -3/Quarantine | Cryocooling Duct disabled 31405 | -3/Quarantine | Cryocooling Duct disabled 31420 | -3/Quarantine | Ambient heat levels rising (+40) 31420 | -3/Quarantine | Combat units ordered to evacuate 31434 | -3/Quarantine | Found Alien Artifact 31434 | -3/Quarantine | Identified Core Reset Matrix 31434 | -3/Quarantine | Used Core Reset Matrix 31438 | -3/Quarantine | Detected hypermatrix surge 31438 | -3/Quarantine | Sensed 5 artifacts in vicinity 31452 | -3/Quarantine | Found Sigix Broadsword 31467 | -3/Quarantine | Discovered exit to Research (range 52) 31511 | -3/Quarantine | Met incapacitated Sigix Warrior 31511 | -3/Quarantine | Lockdown squad dispatched 31512 | -3/Quarantine | Acquired the access code to the Sigix quarantine chamber 31513 | -3/Quarantine | Unlocked Sigix quarantine chamber 31514 | -3/Quarantine | Found Sigix Containment Pod 31520 | -3/Quarantine | Quarantine Guard activated 31531 | -3/Quarantine | Spotted Lightning 31532 | -3/Quarantine | Spotted Lightning 31535 | -3/Quarantine | Spotted Lightning 31536 | -3/Quarantine | Destroyed Lightning 31538 | -3/Quarantine | Spotted Quarantine Guard 31543 | -3/Quarantine | Destroyed Lightning 31547 | -3/Quarantine | Destroyed Lightning 31550 | -3/Quarantine | Destroyed Quarantine Guard 31553 | -3/Quarantine | Spotted Quarantine Guard 31554 | -3/Quarantine | Destroyed Quarantine Guard 31560 | -3/Quarantine | Found Exp. Phase Shifter 31565 | -3/Quarantine | Spotted Quarantine Guard 31619 | -3/Quarantine | Destroyed Quarantine Guard 31630 | -3/Quarantine | Spotted Quarantine Guard 31655 | -3/Quarantine | Destroyed Quarantine Guard 31660 | -3/Quarantine | Spotted Quarantine Guard 31672 | -3/Quarantine | Spotted Quarantine Guard 31686 | -3/Quarantine | Entered Research 31686 | -2/Research | Evolved 2 slots: Utility x2 31803 | -2/Research | Identified exit to Access 31803 | -2/Research | Identified exit to Testing 31839 | -2/Research | Local machine network offline 32031 | -2/Research | Spotted B-90 Cyclops 32041 | -2/Research | Destroyed B-90 Cyclops 32106 | -2/Research | Cargo convoy interrupted 32112 | -2/Research | Found Exp. Sensor Array 32141 | -2/Research | Spotted B-90 Cyclops 32142 | -2/Research | Destroyed B-90 Cyclops 32226 | -2/Research | Build established: Hacker-Sprinter 32241 | -2/Research | Entered Testing 32242 | -2/Testing | Spotted PY-5N0C7D6E28 32289 | -2/Testing | Found Exp. System Shield 32300 | -2/Testing | Found Cld. Nova Cannon 32310 | -2/Testing | Discovered exit to Access (range 8) 32360 | -2/Testing | Spotted Striker 32361 | -2/Testing | Spotted Striker 32489 | -2/Testing | Found Myomer Exoskeleton 32506 | -2/Testing | Spotted Fortress 32507 | -2/Testing | Destroyed Fortress 32519 | -2/Testing | Discovered new exit (range 6) 32519 | -2/Testing | Identified exit to Section 7 32520 | -2/Testing | Entered Section 7 32521 | -2/Section 7 | Sensed 22 artifacts in vicinity 32554 | -2/Section 7 | Spotted B-99 Colossus 32555 | -2/Section 7 | Destroyed B-99 Colossus 32575 | -2/Section 7 | Integrated with Sigix Exoskeleton 32589 | -2/Section 7 | Sigix Warrior commented on Exoskeleton integration 32591 | -2/Section 7 | Spotted Executioner 32591 | -2/Section 7 | Spotted Executioner 32608 | -2/Section 7 | Destroyed Executioner 32611 | -2/Section 7 | Destroyed Executioner 32617 | -2/Section 7 | Spotted Striker 32617 | -2/Section 7 | Spotted Striker 32619 | -2/Section 7 | Destroyed Striker 32622 | -2/Section 7 | Destroyed Striker 32659 | -2/Section 7 | Spotted Striker 32659 | -2/Section 7 | Spotted Striker 32664 | -2/Section 7 | Destroyed Striker 32671 | -2/Section 7 | Found Sigix Shearcannon 32673 | -2/Section 7 | Destroyed Striker 32681 | -2/Section 7 | Found Sigix Sheargun 32683 | -2/Section 7 | Found Sigix Sheargun 32705 | -2/Section 7 | Found Matter Drive 32750 | -2/Section 7 | Used Subatomic Replicator to replicate LRC Inertial Stabilizer 32751 | -2/Section 7 | Found LRC Inertial Stabilizer 32751 | -2/Section 7 | Installed LRC Inertial Stabilizer, increased mass support (+10) 32753 | -2/Section 7 | Installed LRC Inertial Stabilizer, increased mass support (+20) 32756 | -2/Section 7 | Found LRC Inertial Stabilizer 32756 | -2/Section 7 | Installed LRC Inertial Stabilizer, increased mass support (+10) 32757 | -2/Section 7 | Found LRC Energy Well 32757 | -2/Section 7 | Installed LRC Energy Well, increased energy storage capacity (+250) 32778 | -2/Section 7 | Found Integrity Redistributor 32779 | -2/Section 7 | Found Integrity Redistributor 32800 | -2/Section 7 | Spotted Executioner 32800 | -2/Section 7 | Spotted Executioner 32810 | -2/Section 7 | Found Terrabomb 32811 | -2/Section 7 | Found Terrabomb 32812 | -2/Section 7 | Found Terrabomb 32816 | -2/Section 7 | Found Transdimensional Reconstructor 32817 | -2/Section 7 | Found Transdimensional Reconstructor 32817 | -2/Section 7 | Warped through subspace 32844 | -2/Section 7 | Spotted Alpha 7 32844 | -2/Section 7 | Spotted Alpha 7 32856 | -2/Section 7 | Found Microwarp Drive 32870 | -2/Section 7 | Spotted B-90 Cyclops 32872 | -2/Section 7 | Destroyed B-90 Cyclops 32876 | -2/Section 7 | Build established: Alien-Sigix 32877 | -2/Section 7 | Spotted S7 Guard 32879 | -2/Section 7 | Destroyed S7 Guard 32886 | -2/Section 7 | Found Core Membrane 32886 | -2/Section 7 | Installed Core Membrane, gained immunity to corruption 32889 | -2/Section 7 | Found Prototype Protection 32910 | -2/Section 7 | Found Integrated Dissipator 32910 | -2/Section 7 | Installed Integrated Dissipator, increased core heat dissipation (+20) 32919 | -2/Section 7 | Found Integrity Redistributor 32969 | -2/Section 7 | Found Integrated Dissipator 32969 | -2/Section 7 | Installed Integrated Dissipator, increased core heat dissipation (+20) 32993 | -2/Section 7 | Discovered exit to Access (range 18) 33010 | -2/Section 7 | Entered Access 33010 | -1/Access | Evolved 6 slots: Power x1, Utility x4, Weapon x1 33012 | -1/Access | Identified Hvy. Regenerative Plating 33015 | -1/Access | Emitted hypermatrix ping 33020 | -1/Access | Assembled emerged from beneath the floor 33025 | -1/Access | Identified exit to Command 33025 | -1/Access | Identified exit to Surface 33051 | -1/Access | Garrison activated, responded to threat 33076 | -1/Access | Assembled emerged from beneath the floor 33234 | -1/Access | Lost 6 allies 33260 | -1/Access | First assault squad dispatched 33281 | -1/Access | Spotted B-99 Colossus 33282 | -1/Access | Assembled emerged from beneath the floor 33286 | -1/Access | Garrison activated, responded to threat 33298 | -1/Access | Found Prototype Processor 33298 | -1/Access | Identified Exp. Melee Analysis Suite 33313 | -1/Access | Sigix Exoskeleton integrity reduced to 80% 33313 | -1/Access | Destroyed 18 combat bots 33321 | -1/Access | Destroyed B-99 Colossus 33325 | -1/Access | Lost 5 allies 33335 | -1/Access | Found Exp. Melee Analysis Suite 33345 | -1/Access | Found Unknown Protection 33345 | -1/Access | Identified Hvy. Reflective Plating 33415 | -1/Access | Repaired Broken Quantum Shading Machine 33457 | -1/Access | Spotted B-99 Colossus 33457 | -1/Access | Spotted B-99 Colossus 33469 | -1/Access | Destroyed B-99 Colossus 33479 | -1/Access | Destroyed B-99 Colossus 33527 | -1/Access | Destroyed 8 combat bots 33563 | -1/Access | Entered Command 33568 | -1/Command | Emitted hypermatrix ping 33570 | -1/Command | Destroyed 8 combat bots 33573 | -1/Command | Assembled emerged from beneath the floor 33693 | -1/Command | Spotted B-99 Colossus 33702 | -1/Command | Destroyed B-99 Colossus 33740 | -1/Command | Assembled emerged from beneath the floor 33779 | -1/Command | Assembled emerged from beneath the floor 33795 | -1/Command | Discovered exit to Surface (range 17) 33805 | -1/Command | Assembled emerged from beneath the floor 33813 | -1/Command | First assault squad dispatched 33890 | -1/Command | Spotted M Guard 33890 | -1/Command | Spotted M Guard 33891 | -1/Command | Spotted Combat Programmer 33891 | -1/Command | Spotted Combat Programmer 33905 | -1/Command | Destroyed M Guard 33910 | -1/Command | Destroyed Combat Programmer 33913 | -1/Command | Destroyed M Guard 33916 | -1/Command | Destroyed Combat Programmer 33916 | -1/Command | All MAIN.C guards destroyed 33973 | -1/Command | Disengaged cave seal 33994 | -1/Command | Disengaged cave seal 33994 | -1/Command | Assembled emerged from the dark tunnel 33994 | -1/Command | High security lockdown imminent 34074 | -1/Command | High security lockdown engaged 34100 | -1/Command | Met MAIN.C 34103 | -1/Command | 0b10 Conduit disabled 34134 | -1/Command | MAIN.C's shell transforms into a squad of autonomous robots 34134 | -1/Command | Destroyed MAIN.C Shell 34134 | -1/Command | Spotted M Shell/Def 34134 | -1/Command | Spotted M Shell/Atk 34134 | -1/Command | Spotted M Shell/Def 34134 | -1/Command | Spotted M Shell/Atk 34134 | -1/Command | Spotted M Shell/Atk 34134 | -1/Command | Spotted M Shell/Def 34134 | -1/Command | Spotted M Shell/Atk 34134 | -1/Command | Spotted M Shell/Def 34137 | -1/Command | MAIN.C activated Command garrisons 34159 | -1/Command | Core integrity fell below 50% 34160 | -1/Command | Destroyed M Shell/Def 34162 | -1/Command | Destroyed M Shell/Def 34162 | -1/Command | Destroyed M Shell/Def 34166 | -1/Command | Destroyed M Shell/Atk 34168 | -1/Command | Sigix Exoskeleton integrity reduced to 60% 34170 | -1/Command | Destroyed M Shell/Atk 34172 | -1/Command | Destroyed M Shell/Atk 34174 | -1/Command | Destroyed M Shell/Atk 34192 | -1/Command | Destroyed MAIN.C 34195 | -1/Command | Discovered exit to Surface (range 38) 34195 | -1/Command | Discovered exit to Surface (range 79) 34195 | -1/Command | Extracted map data and part IDs from MAIN.C's data core 34236 | -1/Command | Destroyed 11 combat bots 34394 | -1/Command | Destroyed 46 combat bots 34437 | -1/Command | Crushed by falling debris 34441 | -1/Command | Phase Generator disabled 34534 | -1/Command | Found Vortex Chain Reactor 34595 | -1/Command | Found Med. Regenerative Plating 34599 | -1/Command | Found Med. Regenerative Plating 34803 | -1/Command | Used Integrity Redistributor, redistributed integrity to core (+543) 34804 | -1/Command | Sigix Exoskeleton integrity reduced to 40% 35195 | *** | Destroyed 0b10! Last Messages --------------- 34470_ Acquired 7 matter. 34476_ K-01 Serf collects debris. 34487_ Slug penetrates H-88 Terminator. 34490_ H-88 Terminator suffers critical hit (Destroy). 34492_ Slug penetrates H-88 Terminator. 34492_ H-88 Terminator destroyed. 34493_ The unstable cave ceiling collapses. 34534_ Acquired Vortex Chain Reactor. 34535_ Dropped Adv. Weight Redist. System. 34560_ K-01 Serf collects debris. 34568_ Acquired 10 matter. 34571_ K-01 Serf collects debris. K-01 Serf shuts down. 34595_ Acquired Med. Regenerative Plating. 34597_ Acquired 10 matter. 34599_ Acquired Med. Regenerative Plating. 34616_ Acquired 10 matter. 34803_ Integrity redistributed to core (+543). 34804_ Exo-853F: "Integrity reduced to 40%, advise evasive maneuvers to regroup with unit." Map ----- +----------------------------------------------------+ | ????????????????################################## | | ???????????????################################### | | ??????????????#################################### | | ?????????????##################################### | | ????????????##### ######################## | | ???????????######! ^ ^ # ################# | | ??????????####### ^ # ]! ################# | | ??????????####### "" "" # ]! ################# | | ?????????######## ""T"" # ! ################# | | ????????######### """ # ################# | | ????????######### ^ # #####"########### | | ????????#########! # + ### | | ???????#################+## # T### | | ???????############### # ###"####"""""#### | | ???????############### "" # ## ###""""#### | | ??????################ "T + ## #]]] =### | | ??????################ " ## #]]] ! =### | | ??????################# "# #" #!!! =### | | ??????################# "###""""## #!!!*!==### | | ??????################# #####" "## = ########### | | ?????#################; ###### ##" ########### | | ??????################# "####" "## ########### | | ??????################# ###### + ########### | | ??????################# ###### #"############## | | ??????################# ###" "############# | | ??????################# X ### ########""""" | | ??????################# ### ########"" | | ???????####################### ########""""" | | ???????#######################^ ^^########"""" | | ???????#######################^ ^ ^########" " | | ???????########### ### "#######"" "" | | ???????########### ##" ########"" " | | ????????########## "" ### ######## " | | ????????##########"""" ### #### ### " | | ????????##########"""" ##" " #### " | | #######??######### "" ### " ### #"" """ | | =#???######## ### = # #"" | | ############ ### *[% ## # | | + #########+####### =%! # #! | | ###### #######* ####" *!%|!"####!! | | #????# ##### # [!%!%![%![%! | | *#????# ####### [ [==[!![=%|! | | #????# ####### =!%!=[[ | | #????# ####### ##+#####%="""""#*#!= | | ############+# ######=%=## # # ### | | ???????# # * ## # # # ### | | ???????# = / # ## # #####" ######### | | ???????# # ## # # # ######### | | ######## # ## + # ########### | | # # ## # #% ########### | +----------------------------------------------------+ Best States ------------- Heat Dissipation 162 Energy Generation 117 Energy Capacity 1390 Matter Stores 300 Matter Capacity 700 Sight Range 21 Robot Scan Range 25 Terrain Scan Range 200 Terrain Scan Density 3010 Cloak Strength 20 Additional Mass Support 20 Corruption Block 8 Armor Coverage 1050 Resistance: KI 70 Resistance: TH 70 Resistance: EX 70 Resistance: EM 70 Resistance: I 70 Resistance: S 70 Resistance: P 70 Weapon Shielding 100 Weapon Cycling 25 Phase Shifting 400 Evasion (%) 466 Targeting Accuracy 8 Melee Accuracy 12 Core Analysis 8 Particle Charging 25 Offensive Hacking 210 Defensive Hacking 100 Authchip Count 9 Item Schematics ----------------- Mak. Power Source | -3/Quarantine | Extrapolated Spk. Treads | -3/Quarantine | Extrapolated Spk. Medium Treads | -3/Quarantine | Extrapolated Triangulator | -3/Quarantine | Scanalyzed Quantum Capacitor | -3/Quarantine | Scanalyzed Cld. Proton Cannon | -3/Quarantine | Scanalyzed Exp. Phase Shifter | -3/Quarantine | Scanalyzed Spk. Heavy Treads | -2/Research | Extrapolated Mak. Leg | -2/Research | Extrapolated Adv. Heavy Siege Treads | -2/Research | Hacked Mak. Hover Unit | -2/Research | Extrapolated Mak. Flight Unit | -2/Research | Extrapolated Mak. Coolant Network | -2/Research | Extrapolated Humpback | -2/Research | Extrapolated Mak. Trap Scanner | -2/Research | Extrapolated Mak. Sensor Array | -2/Research | Extrapolated Mak. Terrain Scanner | -2/Testing | Extrapolated Enh. Biometal Leg | -2/Testing | Archive Imp. Lightning Gun | -2/Testing | Archive Exp. Coolant Injector | -2/Testing | Archive Beam Splitter | -2/Testing | Archive Imp. Q-thruster | -2/Testing | Hacked Mak. Terrain Scan Processor | -2/Testing | Extrapolated Spectral Analyzer | -2/Testing | Archive Thunder Hammer | -2/Testing | Archive Exp. Biometal Medium Treads | -2/Testing | Archive Exp. Q-thruster | -2/Testing | Scanalyzed Cld. Impulse Thruster | -2/Testing | Scanalyzed Electron Diverter | -2/Testing | Scanalyzed Adv. Phase Shifter | -2/Testing | Hacked 0b10 Decoder Chip [Generic] | -2/Testing | Extrapolated Exp. Signal Interpreter | -2/Testing | Archive Prc. Matter Filter | -2/Testing | Archive Adv. Thermal Defense Suite | -2/Testing | Archive Prc. Energy Filter | -2/Testing | Archive Cld. Q-thruster | -2/Testing | Hacked Enh. Nova Cannon | -2/Testing | Hacked Adv. Quantum Shading Machine | -2/Testing | Hacked 0b10 Decoder Chip [Looter] | -2/Testing | Extrapolated 0b10 Decoder Chip [Scout] | -2/Testing | Extrapolated Imp. Energy Mantle | -2/Section 7 | Archive Cld. Antigrav System | -2/Section 7 | Archive Exp. Power Amplifier | -2/Section 7 | Archive Energy Mantle | -2/Section 7 | Archive Tesla Bomb Launcher | -2/Section 7 | Archive Plasma Sword | -2/Section 7 | Archive Adv. Energy Well | -2/Section 7 | Archive Exp. EM Disruption Field | -2/Section 7 | Archive Hellfire Missile Launcher | -2/Section 7 | Archive Exp. Biometal Leg | -2/Section 7 | Archive Imp. Energy Well | -2/Section 7 | Archive Quantum Reactor | -1/Access | Hacked Enh. Quantum Rifle | -1/Access | Hacked Robot Schematics ------------------ R-10 Processor | -2/Testing | Archive H-88 Terminator | -2/Testing | Archive K-01 Serf | -2/Testing | Archive T-07 Excavator | -2/Testing | Archive C-55 Analyst | -2/Section 7 | Archive L-61 Swordsman | -2/Section 7 | Archive X-87 Electro | -2/Section 7 | Archive E-15 Imp | -2/Section 7 | Archive R-06 Scavenger | -1/Access | Hacked Fabricated ------------ P-70 Sage | x2 | -6/Factory | Authchip Biomechanical Wings | x1 | -6/Factory | Authchip Biomechanical Wings | x1 | -6/Factory | Authchip Biomechanical Wings | x1 | -6/Factory | Authchip P-70 Sage | x2 | -5/Factory | Authchip Exp. Cesium-ion Thruster | x1 | -4/Factory | Authchip H-77 Assassin | x2 | -4/Factory | Preloaded Alien Tech Used ----------------- Integrated Dissipator Core Cannon Phase Armor Core Reset Matrix Sigix Broadsword Sigix Exoskeleton Sigix Sheargun Subatomic Replicator LRC Inertial Stabilizer LRC Energy Well Transdimensional Reconstructor Core Membrane Matter Drive Sigix Shearcannon Integrity Redistributor Achievements -------------- Curiosity Killed The Cat Challenges ------------ None Game ------ Seed GrapheneDeuteriumDrivehammer Manual? 0 Play Time 10:56:02 Cumulative 605.8 hours Start 2024.08.20 @ 22:38:13 End 2024.09.01 @ 09:59:18 Sessions 8 Manual Loads 0 Difficulty Adventurer Special Mode None Game No. 114 Rogue 63 Adventurer 51 Explorer 0 Win Type 3 Total 26 Types 6/3/1/8/1/1/1/3/2 Lore% 71 Gallery% 88 Achievement% 82 Wizard Run 0 Options --------- Layout 0 ASCII 0 Keyboard 0 Movement Numpad Keybinds 0 Fullscreen 2 Font 18/X11 Map View 76x50 Zoom Use 0% Tactical HUD 1 Map Filters NONE Filters NONE Steam 1 RUN: b27fa1e4-3041-4d7d-9e20-d0152931cc95